{"text_format":"1","workbook":"xlsx","n_sheets":6,"sheets":["Fiche","BD","Champs - Menus déroulants","Version","Code NAF-NACE","Départements"],"not_rendered":{"charts":0,"images":0,"macros":1,"external_links":0,"defined_names":6,"comments":1,"pivot_tables":0},"unopened":[],"bounds":{"document_bytes":16777216,"sheet_cells":100000,"rows_first":2000,"rows_last":500,"rows_between":2000,"halvings":0,"cell_chars":16384,"cell_head_chars":4096},"cells_cut":0,"cells_raw":0,"read":"whole","date_system":"1900"}

{"sheet":"Fiche","index":0,"n_rows":108,"n_cols":10,"rows_kept":108,"cut":false,"hidden":false,"merged":[[105,9,105,11],[107,9,107,11],[106,9,106,11],[30,5,30,6],[100,9,100,11],[101,9,101,11],[102,9,102,11],[103,9,103,11],[104,9,104,11],[69,9,69,11],[63,9,63,11],[52,9,52,11],[53,9,53,11],[54,9,54,11],[55,9,55,11],[62,9,62,11],[96,2,96,6],[32,3,32,6],[56,5,56,6],[51,5,51,6],[88,5,88,6],[81,4,81,7],[83,4,83,5],[65,2,65,5],[99,18,99,19],[76,9,76,11],[77,9,77,11],[78,9,78,11],[82,9,82,11],[99,12,99,13],[99,16,99,17],[95,9,95,11],[89,9,89,11],[90,9,90,11],[91,9,91,11],[93,9,93,11],[97,9,97,11],[99,9,99,11],[96,9,96,11],[98,9,98,11],[81,9,81,11],[80,9,80,11],[0,9,0,11],[1,9,1,11],[74,2,74,3],[75,9,75,11],[43,9,43,11],[74,9,74,11],[68,9,68,11],[72,9,72,11],[73,9,73,11],[3,9,3,11],[5,9,5,11],[6,9,6,11],[19,9,19,11],[59,9,59,11],[70,9,70,11],[71,9,71,11],[0,1,0,7],[27,3,27,6],[41,3,41,6],[68,2,68,3],[47,2,47,3],[46,2,46,3],[15,3,15,6],[7,9,7,11],[17,9,17,11],[28,9,28,11],[39,9,39,11],[41,9,41,11],[37,3,37,6],[22,9,22,11],[23,9,23,11],[18,9,18,11],[24,9,24,11],[26,9,26,11],[27,9,27,11],[20,9,20,11],[73,2,73,6],[57,5,59,6],[60,5,62,6],[60,9,61,11],[65,9,67,11],[33,9,33,11],[9,3,9,6],[13,3,13,6],[44,9,44,11],[46,9,46,11],[23,2,23,3],[30,9,30,11],[35,9,35,11],[35,2,35,5],[56,9,56,11],[57,9,57,11],[58,9,58,11],[47,9,47,11],[48,9,48,11],[49,9,49,11],[50,9,50,11],[11,9,11,11],[13,9,13,11],[15,9,15,11]]}
[null,"FICHE ELIGIBILITE INAF / GARANTIE FEI\n(à joindre à tous les dossiers avec garantie INAF ) ",null,null,null,null,null,null,null,"Commentaires"]
[null,"V16/11/2020 "]
[]
[null,null,"Date de la demande (JJ/MM/AAAA):",null,{"$f":"IF(D4=\"\",2,0)","v":2},"Conseiller de clientèle ",null,{"$f":"IF(G4=\"\",2,0)","v":2}]
[]
[]
[null,{"$f":"SUM(E8,H10,E12,E18,E19:E24,H12:H24)","v":30},"Emprunteur"]
[null,null,"N° de personne : ",null,{"$f":"IF(D8=\"\",2,0)","v":2}]
[]
[null,null,"Type:",null,null,null,null,{"$f":"IF(D10=\"\",2,0)","v":2}]
[]
[null,null,"Siren (9 chiffres):",null,{"$f":"IF(D12=\"\",2,0)","v":2},"Date de création activité emprunteur \n =date du jour si installation à venir/ (jj/mm/aaaa)",null,{"$f":"IF(G12=\"\",2,0)","v":2}]
[]
[null,null,"Nom:",null,null,null,null,{"$f":"IF(D14=\"\",2,0)","v":2}]
[]
[null,null,"Code NAF / NACE:",null,null,null,null,{"$f":"IF(D16=\"\",2,VLOOKUP(D16,'Code NAF-NACE'!C:D,2,FALSE))","v":2}]
[]
[null,null,"Code Postal:",null,{"$f":"IF(D18=\"\",2,0)","v":2},"Commune:",null,{"$f":"IF(G18=\"\",2,0)","v":2}]
[null,null,"Département:",null,{"$f":"IF(D19=\"\",2,0)","v":2}]
[null,null,"Effectif total des sociétés du Groupe:",null,{"$f":"IF(D20=\"\",2,0)","v":2},"Chiffre d'affaires consolidés groupe (€):",null,{"$f":"IF(G20=\"\",2,0)","v":2}]
[null,null,"Total bilan sociétés du Groupe (€): ",null,{"$f":"IF(D21=\"\",2,0)","v":2},{"$f":"IF(DATEDIF(G12,TODAY(),\"Y\")>7,\"Pour les structures de plus de 7 ans, CA moyen des 5 dernières années\",\"\")","v":"Pour les structures de plus de 7 ans, CA moyen des 5 dernières années"},null,{"$f":"IF(DATEDIF(G12,TODAY(),\"Y\")>7,IF(G21>1000,0,2),1)","v":2}]
[]
[null,null,"Jeune Agriculteur (O/N):",null,{"$f":"IF(D23=\"\",2,0)","v":2},"Segment de marché",null,{"$f":"IF(G23=\"\",2,IF(G23=\"Retail Particulier\",2,0))","v":2}]
[null,null,{"$f":"IF(AND(DATEDIF(G12,TODAY(),\"Y\")>5,D23=\"O\"),\"Alerte : jeune agricuteur et date d'installation trop ancienne\",\"\")","v":""},null,{"$f":"IF(C24=\"\",0,2)","v":0},"Notation interne NIO/NIE",null,{"$f":"IF(G23=\"retail professionnel\",IF(G24<9,0,2),IF(G23=\"Corporate\",IF(G24<14,0,2),IF(G23=\"retail particulier\",2,0)))","v":0},null,"Règle mise en place: si la date de création > 5 ans le client ne peut pas être \"jeune agriculteur\""]
[]
[]
[null,{"$f":"IFERROR(SUM(H28,H31,H33,H36,H38,H42,E31,H40,H44,E44),2)","v":2},"Projet"]
[null,null,"Type de cible (bénéficiaire)  : ",null,null,null,null,{"$f":"IF(D28=\"\",2,0)","v":2}]
["masqué",null,"Type de cible (code) :",{"$f":"VALUE(LEFT(D28,1))","v":{"$error":"#VALUE!"}}]
[]
[null,null,"Projet de renouvellement des générations (O/N):",null,{"$f":"IF(D31=\"\",2,0)","v":2},{"$f":"IFERROR(IF(AND(DATEDIF(G12,TODAY(),\"Y\")>7,D29<3),\"Alerte : incohérence Type de cible et date de création de l'activité\",IF(AND(DATEDIF(G12,TODAY(),\"Y\")<7,D29=3),\"Alerte : incohérence Type de cible et date de création de l'activité\",\"\")),\"\")","v":""},null,{"$f":"IF(F31=\"\",0,2)","v":0},null,"Règle mise en place de cohérence entre la date de création et le type de cible"]
[]
[null,null,"Type d'investissement / TO : ",null,null,null,null,{"$f":"IF(D33=\"\",2,0)","v":2}]
["masqué",null,"Type d'investissement / TO (#):",{"$f":"VALUE(LEFT(D33,1))","v":{"$error":"#VALUE!"}}]
[]
[null,null,{"$f":"IFERROR(IF(D34=3,\"L'investissement concerne t'il la production d’énergies, l'hébergement touristique /restauration, ou les centres équestres ?\",\"\"),\"\")","v":""},null,null,null,null,{"$f":"IF(D34<>3,1,IF(G36=\"\",2,0))","v":{"$error":"#VALUE!"}},null,"Question de cohérence entre la diversification des activités et le niveau des investissments / C Affaires (50% pour les ENR, le tourisme et les centres equestres)"]
[]
[null,null,"Descriptif de l'investissement",null,null,null,null,{"$f":"IF(D38=\"\",2,0)","v":2}]
[]
[]
[]
[null,null,"Branche agricole :",null,null,null,null,{"$f":"IF(D42=\"\",2,0)","v":2}]
[]
[null,null,"Objet de l'investissement:",null,{"$f":"IF(D44=\"\",2,0)","v":2},"Département de l'investissement: ",null,{"$f":"IF(G44=\"\",2,0)","v":2}]
[]
[]
[null,{"$f":"SUM(E57,E63,E64,H50,H51,H54,H64,H66)","v":{"$error":"#VALUE!"}},"Plan de Financement"]
[null,null,"Besoins",null,null,"Ressources"]
[]
[null,null,"Incorporel",{"$f":"SUM(D51:D53)","v":0},null,"Apport:",null,{"$f":"IF(G50=\"\",2,IF(G50>=0,0,2))","v":2}]
[null,null,"FDC / Parts sociales (transmission)",null,null,"Subventions percues sur le projet:",null,{"$f":"IF(G51=\"\",2,IF(G51>=0,0,2))","v":2}]
[null,null,"FDC / Parts sociales (cession entre tiers)",null,null,"(Les subventions ne peuvent pas être préfinancées)"]
[null,null,"Autres élements incorporels"]
[null,null,"Corporel / Immobilier",{"$f":"SUM(D55:D58)","v":0},null,"Autres financements: ",null,{"$f":"IF(G54=\"\",2,IF(G54>=0,0,2))","v":2}]
[null,null,"Construction d'Investissement / exploitation"]
[null,null,"Achats de murs",null,null,"Total Ressources:",{"$f":"G50+G51+G54","v":0}]
[null,null,"Foncier bâti et non bâti (<10% des coûts éligibles (ou 20% pour les projets d'installation et de reprise)",null,{"$f":"IF(AND(D57<(0.2*D64),D29=\"1\"),0,IF(D57<(0.1*D64),0,2))","v":{"$error":"#VALUE!"}}]
[null,null,"Autres investissements immobiliers",null,null,{"$f":"IF(AND(DATEDIF(G12,TODAY(),\"Y\")>7,D64<(G21*0.5)),\"Alerte : l'emprunteur est installé depuis plus de 7 ans et son projet est < 50% du chiffre d'affaires\",\"\")","v":""},null,null,null,"Règle de cohérence : si l'emprunteur existe depuis plus de 7 ans , les investissements doivent être > 50% du CA moyen des 5 dernières années"]
[null,null,"Corporel / Equipement neuf ou occasion",{"$f":"SUM(D60:D62)","v":0}]
[null,null,"Travaux aménagement / installation"]
[null,null,"Matériel, mobilier, équipement",null,null,{"$f":"IFERROR(IF(H66=2,\"Alerte : le montant des investissements concernant les activites de production d'énergie, hébergement touristique ou centre équestre est > 50% du crédit\",\"\"),\"\")","v":""},null,null,null,"Règle de cohérence diversification : si le type d'investissement est = 3 (diversification) et que l'investissement concerne les ENR, l'hebergement touristique ou les centres equestres, alors cette part d'investissment doit être > 50% du pret "]
[null,null,"Cheptel, autres investissements"]
[null,null,"BFR (trésorerie lié à l'investissement < 30% des coûts éligibles)",null,{"$f":"IF(D63>(D64*0.3),2,0)","v":0}]
[null,null,"Total Besoins de Financement:",{"$f":"D50+D54+D59+D63","v":0},{"$f":"IF(OR(D64=\"\",D64=0,E63=2,E57=2),2,0)","v":{"$error":"#VALUE!"}},"Prêt sollicité",null,{"$f":"IF(G64<10000,2,(IF(G64>2500000,2,0)))","v":2}]
[]
[null,null,{"$f":"IF(C36=\"\",\"\",IF(G36=\"O\",\"dont montant des investissements sur les activites de production d'énergie, hébergement touristique ou centre équestre\",\"\"))","v":""},null,null,null,1000,{"$f":"IF(C66=\"\",1,IF(G66<(0.5*G64),0,2))","v":1},null,"règle de cohérence : si l'investissement concerne la diversification vers les ENR, hébergement touristique ou centre equestre alors il faut renseigner le montant des investissements qui y sont dédiés (afin de vérifier la règle de 50 %)"]
[]
[]
[null,{"$f":"SUM(E70,H70:H73,E72,E73,E74)","v":12},"Financement Sollicité "]
[null,null,"Durée en mois (y-compris période de différé):",null,{"$f":"IF(D70>180,2,IF(D70>120,1,IF(D70<12,2,0)))","v":2},"Périodicité du prêt:",null,{"$f":"IF(G70=\"\",2,0)","v":2},null,"Doit être supérieur à 12 mois"]
[]
[null,null,"Type de prêt:",null,{"$f":"IF(D72=\"\",2,0)","v":2},"Taux standard (grille)",null,{"$f":"IF(G72=\"\",2,0)","v":2}]
[null,null,"Type de Garantie complémentaire: ",null,{"$f":"IF(D73=\"\",2,0)","v":2},"Taux retenu (- 0,20 minimum / standard)",null,{"$f":"IF((G72-G73)<0.2%,2,0)","v":2}]
[]
[]
[]
[]
[null,null,"Détermination du Financement Envisageable / Calcul Automatique pour tous les projets"]
[]
[null,null,"(A) Coût Éligible:",{"$f":"D64","v":0}]
[null,null,"B) Plafond d'aides au financement des risques:",15000000,null,null,null,null,null,"Montant cumulatif total accordé à l’emprunteur au titre de toute mesure d’aide au financement des risques ne doit pas être supérieur à € 15,000,000"]
[null,null,"C) Aides au financement des risques reçues:",null," = Ensemble des aides au financement des risques reçues par l’emprunteur",null,null,null,null,"Ensemble des aides au financement des risques reçues par l’emprunteur"]
[null,null,"Plafond de subvention restant:",{"$f":"IFERROR(D81-D82,\"\")","v":15000000}]
["masqué",null,"Financement Max pouvant être Consenti",{"$f":"MIN(3000000,G64,D83)","v":3000000}]
[]
[]
[]
[]
[null,null,"Financement autorisé :",{"$f":"IFERROR(IF(OR(B7>=2,B27>=2,B47>=2,B69>=2),0,MIN(G64,D84)),\"\")","v":""},null,"Vérification Éligibilité"]
[null,null,null,null,null,"Éligibilité du bénéficiaire final",{"$f":"IF(AND(DATEDIF(G12,TODAY(),\"Y\")>7,D64<(G21*0.5)),\"NON\",\"OUI\")","v":"OUI"},{"$f":"IFERROR(IF(G90=\"NON\",2,0),\"\")","v":0},null,"Si N, le bénéficiaire final ne semble pas être éligible; vérifier: (1) sa date d'incorporation ou (2) son chiffre d'affaires annuel moyen des cinq années précédentes"]
[null,null,null,null,null,"Vérification Trésorerie / BFR",{"$f":"IFERROR(IF(D63<(0.3*D64),\"OUI\",\"NON\"),\"NON\")","v":"NON"},{"$f":"IFERROR(IF(G91=\"NON\",2,0),\"\")","v":2},null,"Si N, réduire le financement alloué à la Trésorerie/BFR garanti "]
[null,null,null,null,null,"Vérification Foncier",{"$f":"IFERROR(IF(AND(D57<(0.2*D64),D29=\"1\"),\"OUI\",IF(D57<(0.1*D64),\"OUI\",\"NON\")),\"NON\")","v":"NON"},{"$f":"IFERROR(IF(G92=\"NON\",2,0),\"\")","v":2},null,"Si N, réduire le financement alloué au foncier garanti, vérifier s'il s'agit d'un projet d'installation ou de reprise"]
[]
[null,null,null,null,null,"--> VALIDATION éligibilité du prêt sollicité",{"$f":"IF(D89<=0,\"NON\",IF(OR(G90=\"NON\",G91=\"NON\",G92=\"NON\"),\"NON\",\"OUI\"))","v":"NON"},{"$f":"IFERROR(IF(G94=\"NON\",2,0),\"\")","v":2},null,"Si Non, vérifier l'ensemble des aides au financement des risques recues ainsi que les trois critères ci-dessus"]
[]
[null,null,null,null,null,null,null,null,null,"Limites"]
[null,null,"Simulateur réservé à un usage interne. Ne pas diffuser le fichier ou les documents d'impression.",null,null,null,null,null,null,"Financement ne doit pas:"]
[null,null,null,null,null,null,null,null,null,"- Être d'une durée inférieure à 12 mois"]
[null,null,null,null,null,null,null,null,null,"- Restructurer ou Refinancer des dettes existantes"]
[null,null,null,null,null,null,null,null,null,"- Financer des activités purement financières ou de développement immobilier lorsque celles-ci sont effectuées comme une activité d’investissement financier (dans la cadre d’une SCI, évaluer l’éligibilité du projet sous-jacent) et le crédit à la consommation"]
[null,null,null,null,null,null,null,null,null,"- Préfinancer une subvention"]
[null,null,null,null,null,null,null,null,null,"- Prendre la forme de prêt subordonné, de prêt mezzanine, de prêt assimilable à du quasi fonds propres, ou de prêt convertible"]
[null,null,null,null,null,null,null,null,null,"Financement doit:"]
[null,null,null,null,null,null,null,null,null,"- Avoir un lien direct avec l'activité agricole pour les investissements de diversification"]
[null,null,null,null,null,null,null,null,null,"- pour les investissements de diversification qui sont liés (i) à la production d’énergies, (ii) aux activités d’hébergement touristique ou de restauration ou (iii) aux centres équestres représenter moins de 50% du montant total du projet financé"]
[]
[]
[null,null,null,null,null,null,null,null,null,"00.00Z - Autre code Agri si un des critères suivant est respecté\n•            Les exploitants agricoles personnes physiques ;\n•           Les candidats à l'installation en agriculture ;\n•            Les PME, personnes morales, exerçant une activité agricole (GAEC, EARL, SARL, etc.) ;\n•            Les PME, personnes morales, (SARL, EURL, SA, SAS, etc.) dont à minima 50 % du capital est détenu par une société à objet agricole ou des personnes physiques exploitants agricoles (sachant que pour ces sociétés le financement en question doit être utilisé dans le cadre de leur activité agricole) ;\n•            Les sociétés holding (maison mère et sociétés de type SCI) lorsque leur projet sous-jacent remplit pleinement les conditions d’éligibilité.  "]

{"sheet":"BD","index":1,"n_rows":52,"n_cols":2,"rows_kept":52,"cut":false,"hidden":true,"merged":[]}
["Secteurs","CCA"]
["SECTEUR AGRI 46/82","M    BLANCHER PATRICE           "]
["SECTEUR AGRI 46/82","M    MERCIER MICHAEL            "]
["SECTEUR AGRI 46/82","M    MOLINIE MATTHIEU           "]
["SECTEUR AGRI 46/82","M    TORTON FLORENT             "]
["SECTEUR AGRI 46/82","MME  BONNEFONT JOHANNA          "]
["SECTEUR AGRI 46/82","MME  BORDES MAGALIE             "]
["SECTEUR AGRI 46/82","MME  BROUQUI SABRINA            "]
["SECTEUR AGRI 46/82","MME  LESCURE BEATRICE           "]
["SECTEUR AGRI 46/82","MME  RENOUX  VIOLAINE           "]
["SECTEUR AGRI 46/82","MME  TRESCASES TIPHAINE         "]
["SECTEUR AGRI 12","M    BERNIER THIBAULT           "]
["SECTEUR AGRI 12","M    GRASSET PIERRE-JEAN        "]
["SECTEUR AGRI 12","M    HERAUD OLIVIER             "]
["SECTEUR AGRI 12","M    RASCOL LAURENT             "]
["SECTEUR AGRI 12","M    RAUZY CHRISTOPHE           "]
["SECTEUR AGRI 12","M    REDOULES PHILIPPE          "]
["SECTEUR AGRI 12","MME  CHASSALY DELPHINE          "]
["SECTEUR AGRI 12","MME  SOUYRIS LAURE              "]
["SECTEUR AGRI 32/65","M    BODEVIN ANTONY             "]
["SECTEUR AGRI 32/65","M    CARRARO MICKAEL            "]
["SECTEUR AGRI 32/65","M    CAZABAN SYLVAIN            "]
["SECTEUR AGRI 32/65","M    GRAZIDE-FANTOVA MAXIME     "]
["SECTEUR AGRI 32/65","M    LIGNAC XAVIER              "]
["SECTEUR AGRI 32/65","M    MONMEJA JEAN-PAUL          "]
["SECTEUR AGRI 32/65","M    PEYREGNE GREGORY           "]
["SECTEUR AGRI 32/65","M    SOLAS FABRICE              "]
["SECTEUR AGRI 32/65","M    TEULE ALAIN                "]
["SECTEUR AGRI 32/65","MLLE CLEMENCIS SEVERINE         "]
["SECTEUR AGRI 32/65","MME  DESCALZO EMILIE            "]
["SECTEUR AGRI 31","M    BLANQUIER DORIAN           "]
["SECTEUR AGRI 31","M    DEVAUX RODOLPHE            "]
["SECTEUR AGRI 31","M    PRADEL LUC                 "]
["SECTEUR AGRI 31","MME  DEVILLE AURORE             "]
["SECTEUR AGRI 47","M    DARRACQ WILLIAM            "]
["SECTEUR AGRI 47","M    DUGENY VINCENT             "]
["SECTEUR AGRI 47","M    MAS MAURY STEPHANE         "]
["SECTEUR AGRI 47","MLLE VIDAL SOPHIE               "]
["SECTEUR AGRI 47","MME  BISSIERES NADEGE           "]
["SECTEUR AGRI 47","MME  CANO MANON                 "]
["SECTEUR AGRI 47","MME  CARABIN ISABELLE           "]
["SECTEUR AGRI 47","MME  JULIA SYLVIE               "]
["SECTEUR AGRI 47","MME  MAINGUET SYLVIE            "]
["SECTEUR AGRI 47","MME  ROBERT CELINE              "]
["SECTEUR AGRI 81","M    ALAUZE MICHEL              "]
["SECTEUR AGRI 81","M    ANTOINE SEBASTIEN          "]
["SECTEUR AGRI 81","M    ASTIE SEBASTIEN            "]
["SECTEUR AGRI 81","M    BROBAND YVES               "]
["SECTEUR AGRI 81","M    FERNANDEZ PATRICK          "]
["SECTEUR AGRI 81","M    FRAYSSE CHRISTOPHE         "]
["SECTEUR AGRI 81","M    RIGAL BENOIT               "]
["SECTEUR AGRI 81","MME  BOUBAL SYLVIA              "]

{"sheet":"Champs - Menus déroulants","index":2,"n_rows":128,"n_cols":2,"rows_kept":128,"cut":false,"hidden":true,"merged":[[46,0,46,1],[74,0,74,1],[78,0,78,1]]}
[]
["Dénomination :"]
["Exploitant agricole / personne physique"]
["Candidat à l'installation en agriculture"]
["PME, personne morale, exerçant une activité agricole (GAEC, EARL, SARL, etc.)"]
["PME, personne morale, (SARL, EURL, SA, SAS, etc.) dont à minima 50 % du capital est détenu par une société à objet agricole ou des personnes physiques exploitants agricoles (le financement doit être en lien direct avec une activité agricole)"]
["Société holding (maison mère et société de type SCI) lorsque le projet sous-jacent est en lien direct avec une activité agricole"]
[]
["Éligibilité du Bénéficiaire final / Type de Cible"]
["1 - Installation - reprise : n'exerce son activité sur aucun marché"]
["2 - Installé < 7 ans : exerce son activité sur un marché, quel qu'il soit, depuis moins de 7 ans après sa première vente commerciale"]
["3 - Installé > 7 ans : a besoin d'un financement supérieur à 50 % de son chiffre d'affaires annuel moyen des cinq années précédentes"]
[]
[]
["Type d'Investissement / TO :","Type d'investissement / TO (#) :"]
["1 - Mieux répondre aux attentes des consommateurs",1]
["2- La transformation des modèles agricoles pour une meilleure performance économique, sociale, environnementale et sanitaire et l'amélioration de l'innovation au sein des exploitations",2]
["3 - La diversification des activitiés et des revenus des exploitations",3]
["4 - Mise à jour des actifs ne répondant plus aux meilleures pratiques internationales, afin de promouvoir l'utilisation efficace des ressources telles que l'énergie, la chaleur et l'eau",4]
[]
["Branche Agricole :"]
["1 - Exploitations spécialisées en grandes cultures"]
["2 - Exploitations spécialisées en maraîchage et horticulture"]
["3 - Exploitations spécialisées en Viticulture"]
["4 - Exploitations spécialisées en cultures fruitières et autres cultures permanents"]
["5 - Exploitations bovines spécialisées — orientation lait"]
["6 - Exploitations bovines spécialisées — orientation élevage et viande"]
["7 - Exploitations bovines — lait, élevage et viande combinés"]
["8 - Exploitations avec ovins, caprins et autres herbivores"]
["9 - Exploitations porcines "]
["10 - Exploitations avicoles"]
["11 - Exploitations mixtes avec diverses combinaisons de granivores [par exemple : granivores et bovins laitiers]"]
["12 - Exploitations de polyculture et Polyélevage [par exemple : combinaison horticulture et cultures permanentes, combinaison grandes cultures et bovins / herbivores]"]
["13 - Exploitations non classées"]
[]
[]
[]
["Destination de financement : "]
["Création"]
["Amorçage"]
["Expansion"]
["Renforcement"]
["Réalisation de nouveaux projets"]
["Pénétration de nouveaux marchés/nouveaux développements"]
[]
[]
["Objet de financement :"]
["Incorporel"]
["Corporel"]
["BFR"]
["Incorporel + BFR"]
["Corporel + BFR"]
["Incorporel + Corporel + BFR"]
["Incorporel + Corporel"]
["Transfert de Parts Sociales"]
[]
[]
["Immobilier"]
["Construction d'Investissement / exploitation"]
["Achats de murs"]
["Foncier bâti et non bâti  (< 10% des coûts éligibles)"]
[]
[]
["Corporel / Equipement neuf uniquement"]
["Travaux aménagement / installation"]
["Matériel"]
["Mobilier"]
["Equipement informatique"]
["Véhicule"]
[]
[]
[]
[]
[]
["Type de prêts :"]
["Prêt amortissable"]
["In fine"]
[]
["Périodicité du prêt :"]
["Mensuelle"]
["Trimestrielle"]
["Semestrielle"]
["Annuelle"]
[]
[]
["Calendrier de remboursement : "]
["échéances constantes"]
[]
[]
[]
["Type de Garantie: ","Plafond"]
[{"$f":"IF(Fiche!G64>0,\"Caution Personnelle\",\"Renseigner le plan de financement\")","v":"Renseigner le plan de financement"},{"$f":"IF(Fiche!G64>0,\"Attention Caution doit être limitée à maxi 20% du montant initial\",\"\")","v":""}]
[{"$f":"IF(Fiche!G64>300000,\"Hypothèque\",\"\")","v":""},"Attention Hypothèque doit être limitée à maxi 20% du montant initial"]
[{"$f":"IF(Fiche!G64>300000,\"Caution personnelle+Hypothèque\",\"\")","v":""},"Attention Hypothèque doit être limitée à maxi 20% plus Caution limitée à 20% du montant initial"]
[{"$f":"IF(Fiche!G64>0,\"Néant\",\"\")","v":""},{"$f":"IF(Fiche!H64>0,\"\",\"\")","v":""}]
[]
["Modèle de Notation: "]
["Corporate"]
["Retail Professionnel"]
["Retail Particulier"]
[]
[]
["Notation :"]
[1]
[2]
[3]
[4]
[5]
[6]
[7]
[8]
[9]
[10]
[11]
[12]
[13]
[14]
[15]
[16]
["RX"]
["DX"]
["CX"]
[]
[]
["Boolean"]
["O"]
["N"]
["sans objet"]

{"sheet":"Version","index":3,"n_rows":3,"n_cols":2,"rows_kept":3,"cut":false,"hidden":true,"merged":[]}
["Date","Evolution"]
["2020-07-29","correction sur D90 avec >= au lieu de = 2"]
["2020-07-24","Format de la cellule Siret corrigée"]

{"sheet":"Code NAF-NACE","index":4,"n_rows":733,"n_cols":4,"rows_kept":733,"cut":false,"hidden":true,"merged":[]}
["code ","libellé ","code + libellé ","Eligibilité (Oui = 0 / non + 2"]
["01.11Z","Culture de céréales (à l'exception du riz), de légumineuses et de graines oléagineuses",{"$f":"A2&\" - \"&B2","v":"01.11Z - Culture de céréales (à l'exception du riz), de légumineuses et de graines oléagineuses"},0]
["01.12Z","Culture du riz",{"$f":"A3&\" - \"&B3","v":"01.12Z - Culture du riz"},0]
["01.13Z","Culture de légumes, de melons, de racines et de tubercules","01.13Z - Culture de légumes, de melons, de racines et de tubercules",0]
["01.14Z","Culture de la canne à sucre","01.14Z - Culture de la canne à sucre",0]
["01.15Z","Culture du tabac","01.15Z - Culture du tabac",2]
["01.16Z","Culture de plantes à fibres","01.16Z - Culture de plantes à fibres",0]
["01.19Z","Autres cultures non permanentes","01.19Z - Autres cultures non permanentes",0]
["01.21Z","Culture de la vigne",{"$f":"A9&\" - \"&B9","v":"01.21Z - Culture de la vigne"},0]
["01.22Z","Culture de fruits tropicaux et subtropicaux","01.22Z - Culture de fruits tropicaux et subtropicaux",0]
["01.23Z","Culture d'agrumes","01.23Z - Culture d'agrumes",0]
["01.24Z","Culture de fruits à pépins et à noyau","01.24Z - Culture de fruits à pépins et à noyau",0]
["01.25Z","Culture d'autres fruits d'arbres ou d'arbustes et de fruits à coque","01.25Z - Culture d'autres fruits d'arbres ou d'arbustes et de fruits à coque",0]
["01.26Z","Culture de fruits oléagineux","01.26Z - Culture de fruits oléagineux",0]
["01.27Z","Culture de plantes à boissons","01.27Z - Culture de plantes à boissons",0]
["01.28Z","Culture de plantes à épices, aromatiques, médicinales et pharmaceutiques","01.28Z - Culture de plantes à épices, aromatiques, médicinales et pharmaceutiques",0]
["01.29Z","Autres cultures permanentes","01.29Z - Autres cultures permanentes",0]
["01.30Z","Reproduction de plantes","01.30Z - Reproduction de plantes",0]
["01.41Z","Élevage de vaches laitières","01.41Z - Élevage de vaches laitières",0]
["01.42Z","Élevage d'autres bovins et de buffles","01.42Z - Élevage d'autres bovins et de buffles",0]
["01.43Z","Élevage de chevaux et d'autres équidés","01.43Z - Élevage de chevaux et d'autres équidés",0]
["01.44Z","Élevage de chameaux et d'autres camélidés","01.44Z - Élevage de chameaux et d'autres camélidés",0]
["01.45Z","Élevage d'ovins et de caprins","01.45Z - Élevage d'ovins et de caprins",0]
["01.46Z","Élevage de porcins","01.46Z - Élevage de porcins",0]
["01.47Z","Élevage de volailles","01.47Z - Élevage de volailles",0]
["01.49Z","Élevage d'autres animaux","01.49Z - Élevage d'autres animaux",0]
["01.50Z","Culture et élevage associés","01.50Z - Culture et élevage associés",0]
["01.61Z","Activités de soutien aux cultures","01.61Z - Activités de soutien aux cultures",0]
["01.62Z","Activités de soutien à la production animale","01.62Z - Activités de soutien à la production animale",0]
["01.63Z","Traitement primaire des récoltes","01.63Z - Traitement primaire des récoltes",0]
["01.64Z","Traitement des semences","01.64Z - Traitement des semences",0]
["01.70Z","Chasse, piégeage et services annexes","01.70Z - Chasse, piégeage et services annexes",2]
["02.10Z","Sylviculture et autres activités forestières","02.10Z - Sylviculture et autres activités forestières",2]
["02.20Z","Exploitation forestière","02.20Z - Exploitation forestière",2]
["02.30Z","Récolte de produits forestiers non ligneux poussant à l'état sauvage","02.30Z - Récolte de produits forestiers non ligneux poussant à l'état sauvage",2]
["02.40Z","Services de soutien à l'exploitation forestière","02.40Z - Services de soutien à l'exploitation forestière",2]
["03.11Z","Pêche en mer","03.11Z - Pêche en mer",2]
["03.12Z","Pêche en eau douce","03.12Z - Pêche en eau douce",2]
["03.21Z","Aquaculture en mer","03.21Z - Aquaculture en mer",2]
["03.22Z","Aquaculture en eau douce","03.22Z - Aquaculture en eau douce",2]
["05.10Z","Extraction de houille","05.10Z - Extraction de houille",2]
["05.20Z","Extraction de lignite","05.20Z - Extraction de lignite",2]
["06.10Z","Extraction de pétrole brut","06.10Z - Extraction de pétrole brut",2]
["06.20Z","Extraction de gaz naturel","06.20Z - Extraction de gaz naturel",2]
["07.10Z","Extraction de minerais de fer","07.10Z - Extraction de minerais de fer",2]
["07.21Z","Extraction de minerais d'uranium et de thorium","07.21Z - Extraction de minerais d'uranium et de thorium",2]
["07.29Z","Extraction d'autres minerais de métaux non ferreux","07.29Z - Extraction d'autres minerais de métaux non ferreux",2]
["08.11Z","Extraction de pierres ornementales et de construction, de calcaire industriel, de gypse, de craie et d'ardoise","08.11Z - Extraction de pierres ornementales et de construction, de calcaire industriel, de gypse, de craie et d'ardoise",2]
["08.12Z","Exploitation de gravières et sablières, extraction d'argiles et de kaolin","08.12Z - Exploitation de gravières et sablières, extraction d'argiles et de kaolin",2]
["08.91Z","Extraction des minéraux chimiques et d'engrais minéraux","08.91Z - Extraction des minéraux chimiques et d'engrais minéraux",2]
["08.92Z","Extraction de tourbe","08.92Z - Extraction de tourbe",2]
["08.93Z","Production de sel","08.93Z - Production de sel",2]
["08.99Z","Autres activités extractives n.c.a.","08.99Z - Autres activités extractives n.c.a.",2]
["09.10Z","Activités de soutien à l'extraction d'hydrocarbures","09.10Z - Activités de soutien à l'extraction d'hydrocarbures",2]
["09.90Z","Activités de soutien aux autres industries extractives","09.90Z - Activités de soutien aux autres industries extractives",2]
["10.11Z","Transformation et conservation de la viande de boucherie","10.11Z - Transformation et conservation de la viande de boucherie",2]
["10.12Z","Transformation et conservation de la viande de volaille","10.12Z - Transformation et conservation de la viande de volaille",2]
["10.13A","Préparation industrielle de produits à base de viande","10.13A - Préparation industrielle de produits à base de viande",2]
["10.13B","Charcuterie","10.13B - Charcuterie",2]
["10.20Z","Transformation et conservation de poisson, de crustacés et de mollusques","10.20Z - Transformation et conservation de poisson, de crustacés et de mollusques",2]
["10.31Z","Transformation et conservation de pommes de terre","10.31Z - Transformation et conservation de pommes de terre",2]
["10.32Z","Préparation de jus de fruits et légumes","10.32Z - Préparation de jus de fruits et légumes",2]
["10.39A","Autre transformation et conservation de légumes","10.39A - Autre transformation et conservation de légumes",2]
["10.39B","Transformation et conservation de fruits","10.39B - Transformation et conservation de fruits",2]
["10.41A","Fabrication d'huiles et graisses brutes","10.41A - Fabrication d'huiles et graisses brutes",2]
["10.41B","Fabrication d'huiles et graisses raffinées","10.41B - Fabrication d'huiles et graisses raffinées",2]
["10.42Z","Fabrication de margarine et graisses comestibles similaires",{"$f":"A67&\" - \"&B67","v":"10.42Z - Fabrication de margarine et graisses comestibles similaires"},2]
["10.51A","Fabrication de lait liquide et de produits frais","10.51A - Fabrication de lait liquide et de produits frais",2]
["10.51B","Fabrication de beurre","10.51B - Fabrication de beurre",2]
["10.51C","Fabrication de fromage","10.51C - Fabrication de fromage",2]
["10.51D","Fabrication d'autres produits laitiers","10.51D - Fabrication d'autres produits laitiers",2]
["10.52Z","Fabrication de glaces et sorbets","10.52Z - Fabrication de glaces et sorbets",2]
["10.61A","Meunerie","10.61A - Meunerie",2]
["10.61B","Autres activités du travail des grains","10.61B - Autres activités du travail des grains",2]
["10.62Z","Fabrication de produits amylacés","10.62Z - Fabrication de produits amylacés",2]
["10.71A","Fabrication industrielle de pain et de pâtisserie fraîche","10.71A - Fabrication industrielle de pain et de pâtisserie fraîche",2]
["10.71B","Cuisson de produits de boulangerie","10.71B - Cuisson de produits de boulangerie",2]
["10.71C","Boulangerie et boulangerie-pâtisserie","10.71C - Boulangerie et boulangerie-pâtisserie",2]
["10.71D","Pâtisserie","10.71D - Pâtisserie",2]
["10.72Z","Fabrication de biscuits, biscottes et pâtisseries de conservation","10.72Z - Fabrication de biscuits, biscottes et pâtisseries de conservation",2]
["10.73Z","Fabrication de pâtes alimentaires","10.73Z - Fabrication de pâtes alimentaires",2]
["10.81Z","Fabrication de sucre","10.81Z - Fabrication de sucre",2]
["10.82Z","Fabrication de cacao, chocolat et de produits de confiserie","10.82Z - Fabrication de cacao, chocolat et de produits de confiserie",2]
["10.83Z","Transformation du thé et du café","10.83Z - Transformation du thé et du café",2]
["10.84Z","Fabrication de condiments et assaisonnements","10.84Z - Fabrication de condiments et assaisonnements",2]
["10.85Z","Fabrication de plats préparés","10.85Z - Fabrication de plats préparés",2]
["10.86Z","Fabrication d'aliments homogénéisés et diététiques","10.86Z - Fabrication d'aliments homogénéisés et diététiques",2]
["10.89Z","Fabrication d'autres produits alimentaires n.c.a.","10.89Z - Fabrication d'autres produits alimentaires n.c.a.",2]
["10.91Z","Fabrication d'aliments pour animaux de ferme","10.91Z - Fabrication d'aliments pour animaux de ferme",2]
["10.92Z","Fabrication d'aliments pour animaux de compagnie","10.92Z - Fabrication d'aliments pour animaux de compagnie",2]
["11.01Z","Production de boissons alcooliques distillées","11.01Z - Production de boissons alcooliques distillées",2]
["11.02A","Fabrication de vins effervescents","11.02A - Fabrication de vins effervescents",2]
["11.02B","Vinification","11.02B - Vinification",2]
["11.03Z","Fabrication de cidre et de vins de fruits","11.03Z - Fabrication de cidre et de vins de fruits",2]
["11.04Z","Production d'autres boissons fermentées non distillées","11.04Z - Production d'autres boissons fermentées non distillées",2]
["11.05Z","Fabrication de bière","11.05Z - Fabrication de bière",2]
["11.06Z","Fabrication de malt","11.06Z - Fabrication de malt",2]
["11.07A","Industrie des eaux de table","11.07A - Industrie des eaux de table",2]
["11.07B","Production de boissons rafraîchissantes","11.07B - Production de boissons rafraîchissantes",2]
["12.00Z","Fabrication de produits à base de tabac","12.00Z - Fabrication de produits à base de tabac",2]
["13.10Z","Préparation de fibres textiles et filature","13.10Z - Préparation de fibres textiles et filature",2]
["13.20Z","Tissage","13.20Z - Tissage",2]
["13.30Z","Ennoblissement textile","13.30Z - Ennoblissement textile",2]
["13.91Z","Fabrication d'étoffes à mailles","13.91Z - Fabrication d'étoffes à mailles",2]
["13.92Z","Fabrication d'articles textiles, sauf habillement","13.92Z - Fabrication d'articles textiles, sauf habillement",2]
["13.93Z","Fabrication de tapis et moquettes","13.93Z - Fabrication de tapis et moquettes",2]
["13.94Z","Fabrication de ficelles, cordes et filets","13.94Z - Fabrication de ficelles, cordes et filets",2]
["13.95Z","Fabrication de non-tissés, sauf habillement","13.95Z - Fabrication de non-tissés, sauf habillement",2]
["13.96Z","Fabrication d'autres textiles techniques et industriels","13.96Z - Fabrication d'autres textiles techniques et industriels",2]
["13.99Z","Fabrication d'autres textiles n.c.a.","13.99Z - Fabrication d'autres textiles n.c.a.",2]
["14.11Z","Fabrication de vêtements en cuir","14.11Z - Fabrication de vêtements en cuir",2]
["14.12Z","Fabrication de vêtements de travail","14.12Z - Fabrication de vêtements de travail",2]
["14.13Z","Fabrication de vêtements de dessus","14.13Z - Fabrication de vêtements de dessus",2]
["14.14Z","Fabrication de vêtements de dessous","14.14Z - Fabrication de vêtements de dessous",2]
["14.19Z","Fabrication d'autres vêtements et accessoires","14.19Z - Fabrication d'autres vêtements et accessoires",2]
["14.20Z","Fabrication d'articles en fourrure","14.20Z - Fabrication d'articles en fourrure",2]
["14.31Z","Fabrication d'articles chaussants à mailles","14.31Z - Fabrication d'articles chaussants à mailles",2]
["14.39Z","Fabrication d'autres articles à mailles","14.39Z - Fabrication d'autres articles à mailles",2]
["15.11Z","Apprêt et tannage des cuirs ; préparation et teinture des fourrures","15.11Z - Apprêt et tannage des cuirs ; préparation et teinture des fourrures",2]
["15.12Z","Fabrication d'articles de voyage, de maroquinerie et de sellerie","15.12Z - Fabrication d'articles de voyage, de maroquinerie et de sellerie",2]
["15.20Z","Fabrication de chaussures","15.20Z - Fabrication de chaussures",2]
["16.10A","Sciage et rabotage du bois, hors imprégnation","16.10A - Sciage et rabotage du bois, hors imprégnation",2]
["16.10B","Imprégnation du bois","16.10B - Imprégnation du bois",2]
["16.21Z","Fabrication de placage et de panneaux de bois","16.21Z - Fabrication de placage et de panneaux de bois",2]
["16.22Z","Fabrication de parquets assemblés","16.22Z - Fabrication de parquets assemblés",2]
["16.23Z","Fabrication de charpentes et d'autres menuiseries","16.23Z - Fabrication de charpentes et d'autres menuiseries",2]
["16.24Z","Fabrication d'emballages en bois","16.24Z - Fabrication d'emballages en bois",2]
["16.29Z","Fabrication d'objets divers en bois ; fabrication d'objets en liège, vannerie et sparterie","16.29Z - Fabrication d'objets divers en bois ; fabrication d'objets en liège, vannerie et sparterie",2]
["17.11Z","Fabrication de pâte à papier","17.11Z - Fabrication de pâte à papier",2]
["17.12Z","Fabrication de papier et de carton","17.12Z - Fabrication de papier et de carton",2]
["17.21A","Fabrication de carton ondulé",{"$f":"A131&\" - \"&B131","v":"17.21A - Fabrication de carton ondulé"},2]
["17.21B","Fabrication de cartonnages","17.21B - Fabrication de cartonnages",2]
["17.21C","Fabrication d'emballages en papier","17.21C - Fabrication d'emballages en papier",2]
["17.22Z","Fabrication d'articles en papier à usage sanitaire ou domestique","17.22Z - Fabrication d'articles en papier à usage sanitaire ou domestique",2]
["17.23Z","Fabrication d'articles de papeterie","17.23Z - Fabrication d'articles de papeterie",2]
["17.24Z","Fabrication de papiers peints","17.24Z - Fabrication de papiers peints",2]
["17.29Z","Fabrication d'autres articles en papier ou en carton","17.29Z - Fabrication d'autres articles en papier ou en carton",2]
["18.11Z","Imprimerie de journaux","18.11Z - Imprimerie de journaux",2]
["18.12Z","Autre imprimerie (labeur)","18.12Z - Autre imprimerie (labeur)",2]
["18.13Z","Activités de pré-presse","18.13Z - Activités de pré-presse",2]
["18.14Z","Reliure et activités connexes","18.14Z - Reliure et activités connexes",2]
["18.20Z","Reproduction d'enregistrements","18.20Z - Reproduction d'enregistrements",2]
["19.10Z","Cokéfaction","19.10Z - Cokéfaction",2]
["19.20Z","Raffinage du pétrole","19.20Z - Raffinage du pétrole",2]
["20.11Z","Fabrication de gaz industriels","20.11Z - Fabrication de gaz industriels",2]
["20.12Z","Fabrication de colorants et de pigments","20.12Z - Fabrication de colorants et de pigments",2]
["20.13A","Enrichissement et retraitement de matières nucléaires","20.13A - Enrichissement et retraitement de matières nucléaires",2]
["20.13B","Fabrication d'autres produits chimiques inorganiques de base n.c.a.","20.13B - Fabrication d'autres produits chimiques inorganiques de base n.c.a.",2]
["20.14Z","Fabrication d'autres produits chimiques organiques de base","20.14Z - Fabrication d'autres produits chimiques organiques de base",2]
["20.15Z","Fabrication de produits azotés et d'engrais","20.15Z - Fabrication de produits azotés et d'engrais",2]
["20.16Z","Fabrication de matières plastiques de base","20.16Z - Fabrication de matières plastiques de base",2]
["20.17Z","Fabrication de caoutchouc synthétique","20.17Z - Fabrication de caoutchouc synthétique",2]
["20.20Z","Fabrication de pesticides et d'autres produits agrochimiques","20.20Z - Fabrication de pesticides et d'autres produits agrochimiques",2]
["20.30Z","Fabrication de peintures, vernis, encres et mastics","20.30Z - Fabrication de peintures, vernis, encres et mastics",2]
["20.41Z","Fabrication de savons, détergents et produits d'entretien","20.41Z - Fabrication de savons, détergents et produits d'entretien",2]
["20.42Z","Fabrication de parfums et de produits pour la toilette","20.42Z - Fabrication de parfums et de produits pour la toilette",2]
["20.51Z","Fabrication de produits explosifs","20.51Z - Fabrication de produits explosifs",2]
["20.52Z","Fabrication de colles","20.52Z - Fabrication de colles",2]
["20.53Z","Fabrication d'huiles essentielles","20.53Z - Fabrication d'huiles essentielles",2]
["20.59Z","Fabrication d'autres produits chimiques n.c.a.","20.59Z - Fabrication d'autres produits chimiques n.c.a.",2]
["20.60Z","Fabrication de fibres artificielles ou synthétiques","20.60Z - Fabrication de fibres artificielles ou synthétiques",2]
["21.10Z","Fabrication de produits pharmaceutiques de base","21.10Z - Fabrication de produits pharmaceutiques de base",2]
["21.20Z","Fabrication de préparations pharmaceutiques","21.20Z - Fabrication de préparations pharmaceutiques",2]
["22.11Z","Fabrication et rechapage de pneumatiques","22.11Z - Fabrication et rechapage de pneumatiques",2]
["22.19Z","Fabrication d'autres articles en caoutchouc","22.19Z - Fabrication d'autres articles en caoutchouc",2]
["22.21Z","Fabrication de plaques, feuilles, tubes et profilés en matières plastiques","22.21Z - Fabrication de plaques, feuilles, tubes et profilés en matières plastiques",2]
["22.22Z","Fabrication d'emballages en matières plastiques","22.22Z - Fabrication d'emballages en matières plastiques",2]
["22.23Z","Fabrication d'éléments en matières plastiques pour la construction","22.23Z - Fabrication d'éléments en matières plastiques pour la construction",2]
["22.29A","Fabrication de pièces techniques à base de matières plastiques","22.29A - Fabrication de pièces techniques à base de matières plastiques",2]
["22.29B","Fabrication de produits de consommation courante en matières plastiques","22.29B - Fabrication de produits de consommation courante en matières plastiques",2]
["23.11Z","Fabrication de verre plat","23.11Z - Fabrication de verre plat",2]
["23.12Z","Façonnage et transformation du verre plat","23.12Z - Façonnage et transformation du verre plat",2]
["23.13Z","Fabrication de verre creux","23.13Z - Fabrication de verre creux",2]
["23.14Z","Fabrication de fibres de verre","23.14Z - Fabrication de fibres de verre",2]
["23.19Z","Fabrication et façonnage d'autres articles en verre, y compris verre technique","23.19Z - Fabrication et façonnage d'autres articles en verre, y compris verre technique",2]
["23.20Z","Fabrication de produits réfractaires","23.20Z - Fabrication de produits réfractaires",2]
["23.31Z","Fabrication de carreaux en céramique","23.31Z - Fabrication de carreaux en céramique",2]
["23.32Z","Fabrication de briques, tuiles et produits de construction, en terre cuite","23.32Z - Fabrication de briques, tuiles et produits de construction, en terre cuite",2]
["23.41Z","Fabrication d'articles céramiques à usage domestique ou ornemental","23.41Z - Fabrication d'articles céramiques à usage domestique ou ornemental",2]
["23.42Z","Fabrication d'appareils sanitaires en céramique","23.42Z - Fabrication d'appareils sanitaires en céramique",2]
["23.43Z","Fabrication d'isolateurs et pièces isolantes en céramique","23.43Z - Fabrication d'isolateurs et pièces isolantes en céramique",2]
["23.44Z","Fabrication d'autres produits céramiques à usage technique","23.44Z - Fabrication d'autres produits céramiques à usage technique",2]
["23.49Z","Fabrication d'autres produits céramiques","23.49Z - Fabrication d'autres produits céramiques",2]
["23.51Z","Fabrication de ciment","23.51Z - Fabrication de ciment",2]
["23.52Z","Fabrication de chaux et plâtre","23.52Z - Fabrication de chaux et plâtre",2]
["23.61Z","Fabrication d'éléments en béton pour la construction","23.61Z - Fabrication d'éléments en béton pour la construction",2]
["23.62Z","Fabrication d'éléments en plâtre pour la construction","23.62Z - Fabrication d'éléments en plâtre pour la construction",2]
["23.63Z","Fabrication de béton prêt à l'emploi","23.63Z - Fabrication de béton prêt à l'emploi",2]
["23.64Z","Fabrication de mortiers et bétons secs","23.64Z - Fabrication de mortiers et bétons secs",2]
["23.65Z","Fabrication d'ouvrages en fibre-ciment","23.65Z - Fabrication d'ouvrages en fibre-ciment",2]
["23.69Z","Fabrication d'autres ouvrages en béton, en ciment ou en plâtre","23.69Z - Fabrication d'autres ouvrages en béton, en ciment ou en plâtre",2]
["23.70Z","Taille, façonnage et finissage de pierres","23.70Z - Taille, façonnage et finissage de pierres",2]
["23.91Z","Fabrication de produits abrasifs","23.91Z - Fabrication de produits abrasifs",2]
["23.99Z","Fabrication d'autres produits minéraux non métalliques n.c.a.","23.99Z - Fabrication d'autres produits minéraux non métalliques n.c.a.",2]
["24.10Z","Sidérurgie",{"$f":"A195&\" - \"&B195","v":"24.10Z - Sidérurgie"},2]
["24.20Z","Fabrication de tubes, tuyaux, profilés creux et accessoires correspondants en acier","24.20Z - Fabrication de tubes, tuyaux, profilés creux et accessoires correspondants en acier",2]
["24.31Z","Étirage à froid de barres","24.31Z - Étirage à froid de barres",2]
["24.32Z","Laminage à froid de feuillards","24.32Z - Laminage à froid de feuillards",2]
["24.33Z","Profilage à froid par formage ou pliage","24.33Z - Profilage à froid par formage ou pliage",2]
["24.34Z","Tréfilage à froid","24.34Z - Tréfilage à froid",2]
["24.41Z","Production de métaux précieux","24.41Z - Production de métaux précieux",2]
["24.42Z","Métallurgie de l'aluminium","24.42Z - Métallurgie de l'aluminium",2]
["24.43Z","Métallurgie du plomb, du zinc ou de l'étain","24.43Z - Métallurgie du plomb, du zinc ou de l'étain",2]
["24.44Z","Métallurgie du cuivre","24.44Z - Métallurgie du cuivre",2]
["24.45Z","Métallurgie des autres métaux non ferreux","24.45Z - Métallurgie des autres métaux non ferreux",2]
["24.46Z","Élaboration et transformation de matières nucléaires","24.46Z - Élaboration et transformation de matières nucléaires",2]
["24.51Z","Fonderie de fonte","24.51Z - Fonderie de fonte",2]
["24.52Z","Fonderie d'acier","24.52Z - Fonderie d'acier",2]
["24.53Z","Fonderie de métaux légers","24.53Z - Fonderie de métaux légers",2]
["24.54Z","Fonderie d'autres métaux non ferreux","24.54Z - Fonderie d'autres métaux non ferreux",2]
["25.11Z","Fabrication de structures métalliques et de parties de structures","25.11Z - Fabrication de structures métalliques et de parties de structures",2]
["25.12Z","Fabrication de portes et fenêtres en métal","25.12Z - Fabrication de portes et fenêtres en métal",2]
["25.21Z","Fabrication de radiateurs et de chaudières pour le chauffage central","25.21Z - Fabrication de radiateurs et de chaudières pour le chauffage central",2]
["25.29Z","Fabrication d'autres réservoirs, citernes et conteneurs métalliques","25.29Z - Fabrication d'autres réservoirs, citernes et conteneurs métalliques",2]
["25.30Z","Fabrication de générateurs de vapeur, à l'exception des chaudières pour le chauffage central","25.30Z - Fabrication de générateurs de vapeur, à l'exception des chaudières pour le chauffage central",2]
["25.40Z","Fabrication d'armes et de munitions","25.40Z - Fabrication d'armes et de munitions",2]
["25.50A","Forge, estampage, matriçage ; métallurgie des poudres","25.50A - Forge, estampage, matriçage ; métallurgie des poudres",2]
["25.50B","Découpage, emboutissage","25.50B - Découpage, emboutissage",2]
["25.61Z","Traitement et revêtement des métaux","25.61Z - Traitement et revêtement des métaux",2]
["25.62A","Décolletage","25.62A - Décolletage",2]
["25.62B","Mécanique industrielle","25.62B - Mécanique industrielle",2]
["25.71Z","Fabrication de coutellerie","25.71Z - Fabrication de coutellerie",2]
["25.72Z","Fabrication de serrures et de ferrures","25.72Z - Fabrication de serrures et de ferrures",2]
["25.73A","Fabrication de moules et modèles","25.73A - Fabrication de moules et modèles",2]
["25.73B","Fabrication d'autres outillages","25.73B - Fabrication d'autres outillages",2]
["25.91Z","Fabrication de fûts et emballages métalliques similaires","25.91Z - Fabrication de fûts et emballages métalliques similaires",2]
["25.92Z","Fabrication d'emballages métalliques légers","25.92Z - Fabrication d'emballages métalliques légers",2]
["25.93Z","Fabrication d'articles en fils métalliques, de chaînes et de ressorts","25.93Z - Fabrication d'articles en fils métalliques, de chaînes et de ressorts",2]
["25.94Z","Fabrication de vis et de boulons","25.94Z - Fabrication de vis et de boulons",2]
["25.99A","Fabrication d'articles métalliques ménagers","25.99A - Fabrication d'articles métalliques ménagers",2]
["25.99B","Fabrication d'autres articles métalliques","25.99B - Fabrication d'autres articles métalliques",2]
["26.11Z","Fabrication de composants électroniques","26.11Z - Fabrication de composants électroniques",2]
["26.12Z","Fabrication de cartes électroniques assemblées","26.12Z - Fabrication de cartes électroniques assemblées",2]
["26.20Z","Fabrication d'ordinateurs et d'équipements périphériques","26.20Z - Fabrication d'ordinateurs et d'équipements périphériques",2]
["26.30Z","Fabrication d'équipements de communication","26.30Z - Fabrication d'équipements de communication",2]
["26.40Z","Fabrication de produits électroniques grand public","26.40Z - Fabrication de produits électroniques grand public",2]
["26.51A","Fabrication d'équipements d'aide à la navigation","26.51A - Fabrication d'équipements d'aide à la navigation",2]
["26.51B","Fabrication d'instrumentation scientifique et technique","26.51B - Fabrication d'instrumentation scientifique et technique",2]
["26.52Z","Horlogerie","26.52Z - Horlogerie",2]
["26.60Z","Fabrication d'équipements d'irradiation médicale, d'équipements électromédicaux et électrothérapeutiques","26.60Z - Fabrication d'équipements d'irradiation médicale, d'équipements électromédicaux et électrothérapeutiques",2]
["26.70Z","Fabrication de matériels optique et photographique","26.70Z - Fabrication de matériels optique et photographique",2]
["26.80Z","Fabrication de supports magnétiques et optiques","26.80Z - Fabrication de supports magnétiques et optiques",2]
["27.11Z","Fabrication de moteurs, génératrices et transformateurs électriques","27.11Z - Fabrication de moteurs, génératrices et transformateurs électriques",2]
["27.12Z","Fabrication de matériel de distribution et de commande électrique","27.12Z - Fabrication de matériel de distribution et de commande électrique",2]
["27.20Z","Fabrication de piles et d'accumulateurs électriques","27.20Z - Fabrication de piles et d'accumulateurs électriques",2]
["27.31Z","Fabrication de câbles de fibres optiques","27.31Z - Fabrication de câbles de fibres optiques",2]
["27.32Z","Fabrication d'autres fils et câbles électroniques ou électriques","27.32Z - Fabrication d'autres fils et câbles électroniques ou électriques",2]
["27.33Z","Fabrication de matériel d'installation électrique","27.33Z - Fabrication de matériel d'installation électrique",2]
["27.40Z","Fabrication d'appareils d'éclairage électrique","27.40Z - Fabrication d'appareils d'éclairage électrique",2]
["27.51Z","Fabrication d'appareils électroménagers","27.51Z - Fabrication d'appareils électroménagers",2]
["27.52Z","Fabrication d'appareils ménagers non électriques","27.52Z - Fabrication d'appareils ménagers non électriques",2]
["27.90Z","Fabrication d'autres matériels électriques","27.90Z - Fabrication d'autres matériels électriques",2]
["28.11Z","Fabrication de moteurs et turbines, à l'exception des moteurs d'avions et de véhicules","28.11Z - Fabrication de moteurs et turbines, à l'exception des moteurs d'avions et de véhicules",2]
["28.12Z","Fabrication d'équipements hydrauliques et pneumatiques","28.12Z - Fabrication d'équipements hydrauliques et pneumatiques",2]
["28.13Z","Fabrication d'autres pompes et compresseurs","28.13Z - Fabrication d'autres pompes et compresseurs",2]
["28.14Z","Fabrication d'autres articles de robinetterie","28.14Z - Fabrication d'autres articles de robinetterie",2]
["28.15Z","Fabrication d'engrenages et d'organes mécaniques de transmission","28.15Z - Fabrication d'engrenages et d'organes mécaniques de transmission",2]
["28.21Z","Fabrication de fours et brûleurs","28.21Z - Fabrication de fours et brûleurs",2]
["28.22Z","Fabrication de matériel de levage et de manutention",{"$f":"A259&\" - \"&B259","v":"28.22Z - Fabrication de matériel de levage et de manutention"},2]
["28.23Z","Fabrication de machines et d'équipements de bureau (à l'exception des ordinateurs et équipements périphériques)","28.23Z - Fabrication de machines et d'équipements de bureau (à l'exception des ordinateurs et équipements périphériques)",2]
["28.24Z","Fabrication d'outillage portatif à moteur incorporé","28.24Z - Fabrication d'outillage portatif à moteur incorporé",2]
["28.25Z","Fabrication d'équipements aérauliques et frigorifiques industriels","28.25Z - Fabrication d'équipements aérauliques et frigorifiques industriels",2]
["28.29A","Fabrication d'équipements d'emballage, de conditionnement et de pesage","28.29A - Fabrication d'équipements d'emballage, de conditionnement et de pesage",2]
["28.29B","Fabrication d'autres machines d'usage général","28.29B - Fabrication d'autres machines d'usage général",2]
["28.30Z","Fabrication de machines agricoles et forestières","28.30Z - Fabrication de machines agricoles et forestières",2]
["28.41Z","Fabrication de machines-outils pour le travail des métaux","28.41Z - Fabrication de machines-outils pour le travail des métaux",2]
["28.49Z","Fabrication d'autres machines-outils","28.49Z - Fabrication d'autres machines-outils",2]
["28.91Z","Fabrication de machines pour la métallurgie","28.91Z - Fabrication de machines pour la métallurgie",2]
["28.92Z","Fabrication de machines pour l'extraction ou la construction","28.92Z - Fabrication de machines pour l'extraction ou la construction",2]
["28.93Z","Fabrication de machines pour l'industrie agro-alimentaire","28.93Z - Fabrication de machines pour l'industrie agro-alimentaire",2]
["28.94Z","Fabrication de machines pour les industries textiles","28.94Z - Fabrication de machines pour les industries textiles",2]
["28.95Z","Fabrication de machines pour les industries du papier et du carton","28.95Z - Fabrication de machines pour les industries du papier et du carton",2]
["28.96Z","Fabrication de machines pour le travail du caoutchouc ou des plastiques","28.96Z - Fabrication de machines pour le travail du caoutchouc ou des plastiques",2]
["28.99A","Fabrication de machines d'imprimerie","28.99A - Fabrication de machines d'imprimerie",2]
["28.99B","Fabrication d'autres machines spécialisées","28.99B - Fabrication d'autres machines spécialisées",2]
["29.10Z","Construction de véhicules automobiles","29.10Z - Construction de véhicules automobiles",2]
["29.20Z","Fabrication de carrosseries et remorques","29.20Z - Fabrication de carrosseries et remorques",2]
["29.31Z","Fabrication d'équipements électriques et électroniques automobiles","29.31Z - Fabrication d'équipements électriques et électroniques automobiles",2]
["29.32Z","Fabrication d'autres équipements automobiles","29.32Z - Fabrication d'autres équipements automobiles",2]
["30.11Z","Construction de navires et de structures flottantes","30.11Z - Construction de navires et de structures flottantes",2]
["30.12Z","Construction de bateaux de plaisance","30.12Z - Construction de bateaux de plaisance",2]
["30.20Z","Construction de locomotives et d'autre matériel ferroviaire roulant","30.20Z - Construction de locomotives et d'autre matériel ferroviaire roulant",2]
["30.30Z","Construction aéronautique et spatiale","30.30Z - Construction aéronautique et spatiale",2]
["30.40Z","Construction de véhicules militaires de combat","30.40Z - Construction de véhicules militaires de combat",2]
["30.91Z","Fabrication de motocycles","30.91Z - Fabrication de motocycles",2]
["30.92Z","Fabrication de bicyclettes et de véhicules pour invalides","30.92Z - Fabrication de bicyclettes et de véhicules pour invalides",2]
["30.99Z","Fabrication d'autres équipements de transport n.c.a.","30.99Z - Fabrication d'autres équipements de transport n.c.a.",2]
["31.01Z","Fabrication de meubles de bureau et de magasin","31.01Z - Fabrication de meubles de bureau et de magasin",2]
["31.02Z","Fabrication de meubles de cuisine","31.02Z - Fabrication de meubles de cuisine",2]
["31.03Z","Fabrication de matelas","31.03Z - Fabrication de matelas",2]
["31.09A","Fabrication de sièges d'ameublement d'intérieur","31.09A - Fabrication de sièges d'ameublement d'intérieur",2]
["31.09B","Fabrication d'autres meubles et industries connexes de l'ameublement","31.09B - Fabrication d'autres meubles et industries connexes de l'ameublement",2]
["32.11Z","Frappe de monnaie","32.11Z - Frappe de monnaie",2]
["32.12Z","Fabrication d'articles de joaillerie et bijouterie","32.12Z - Fabrication d'articles de joaillerie et bijouterie",2]
["32.13Z","Fabrication d'articles de bijouterie fantaisie et articles similaires","32.13Z - Fabrication d'articles de bijouterie fantaisie et articles similaires",2]
["32.20Z","Fabrication d'instruments de musique","32.20Z - Fabrication d'instruments de musique",2]
["32.30Z","Fabrication d'articles de sport","32.30Z - Fabrication d'articles de sport",2]
["32.40Z","Fabrication de jeux et jouets","32.40Z - Fabrication de jeux et jouets",2]
["32.50A","Fabrication de matériel médico-chirurgical et dentaire","32.50A - Fabrication de matériel médico-chirurgical et dentaire",2]
["32.50B","Fabrication de lunettes","32.50B - Fabrication de lunettes",2]
["32.91Z","Fabrication d'articles de brosserie","32.91Z - Fabrication d'articles de brosserie",2]
["32.99Z","Autres activités manufacturières n.c.a.","32.99Z - Autres activités manufacturières n.c.a.",2]
["33.11Z","Réparation d'ouvrages en métaux","33.11Z - Réparation d'ouvrages en métaux",2]
["33.12Z","Réparation de machines et équipements mécaniques","33.12Z - Réparation de machines et équipements mécaniques",2]
["33.13Z","Réparation de matériels électroniques et optiques","33.13Z - Réparation de matériels électroniques et optiques",2]
["33.14Z","Réparation d'équipements électriques","33.14Z - Réparation d'équipements électriques",2]
["33.15Z","Réparation et maintenance navale","33.15Z - Réparation et maintenance navale",2]
["33.16Z","Réparation et maintenance d'aéronefs et d'engins spatiaux","33.16Z - Réparation et maintenance d'aéronefs et d'engins spatiaux",2]
["33.17Z","Réparation et maintenance d'autres équipements de transport","33.17Z - Réparation et maintenance d'autres équipements de transport",2]
["33.19Z","Réparation d'autres équipements","33.19Z - Réparation d'autres équipements",2]
["33.20A","Installation de structures métalliques, chaudronnées et de tuyauterie","33.20A - Installation de structures métalliques, chaudronnées et de tuyauterie",2]
["33.20B","Installation de machines et équipements mécaniques","33.20B - Installation de machines et équipements mécaniques",2]
["33.20C","Conception d'ensemble et assemblage sur site industriel d'équipements de contrôle des processus industriels","33.20C - Conception d'ensemble et assemblage sur site industriel d'équipements de contrôle des processus industriels",2]
["33.20D","Installation d'équipements électriques, de matériels électroniques et optiques ou d'autres matériels","33.20D - Installation d'équipements électriques, de matériels électroniques et optiques ou d'autres matériels",2]
["35.11Z","Production d'électricité","35.11Z - Production d'électricité",2]
["35.12Z","Transport d'électricité","35.12Z - Transport d'électricité",2]
["35.13Z","Distribution d'électricité","35.13Z - Distribution d'électricité",2]
["35.14Z","Commerce d'électricité","35.14Z - Commerce d'électricité",2]
["35.21Z","Production de combustibles gazeux","35.21Z - Production de combustibles gazeux",2]
["35.22Z","Distribution de combustibles gazeux par conduites","35.22Z - Distribution de combustibles gazeux par conduites",2]
["35.23Z","Commerce de combustibles gazeux par conduites","35.23Z - Commerce de combustibles gazeux par conduites",2]
["35.30Z","Production et distribution de vapeur et d'air conditionné","35.30Z - Production et distribution de vapeur et d'air conditionné",2]
["36.00Z","Captage, traitement et distribution d'eau",{"$f":"A323&\" - \"&B323","v":"36.00Z - Captage, traitement et distribution d'eau"},2]
["37.00Z","Collecte et traitement des eaux usées","37.00Z - Collecte et traitement des eaux usées",2]
["38.11Z","Collecte des déchets non dangereux","38.11Z - Collecte des déchets non dangereux",2]
["38.12Z","Collecte des déchets dangereux","38.12Z - Collecte des déchets dangereux",2]
["38.21Z","Traitement et élimination des déchets non dangereux","38.21Z - Traitement et élimination des déchets non dangereux",2]
["38.22Z","Traitement et élimination des déchets dangereux","38.22Z - Traitement et élimination des déchets dangereux",2]
["38.31Z","Démantèlement d'épaves","38.31Z - Démantèlement d'épaves",2]
["38.32Z","Récupération de déchets triés","38.32Z - Récupération de déchets triés",2]
["39.00Z","Dépollution et autres services de gestion des déchets","39.00Z - Dépollution et autres services de gestion des déchets",2]
["41.10A","Promotion immobilière de logements","41.10A - Promotion immobilière de logements",2]
["41.10B","Promotion immobilière de bureaux","41.10B - Promotion immobilière de bureaux",2]
["41.10C","Promotion immobilière d'autres bâtiments","41.10C - Promotion immobilière d'autres bâtiments",2]
["41.10D","Supports juridiques de programmes","41.10D - Supports juridiques de programmes",2]
["41.20A","Construction de maisons individuelles","41.20A - Construction de maisons individuelles",2]
["41.20B","Construction d'autres bâtiments","41.20B - Construction d'autres bâtiments",2]
["42.11Z","Construction de routes et autoroutes","42.11Z - Construction de routes et autoroutes",2]
["42.12Z","Construction de voies ferrées de surface et souterraines","42.12Z - Construction de voies ferrées de surface et souterraines",2]
["42.13A","Construction d'ouvrages d'art","42.13A - Construction d'ouvrages d'art",2]
["42.13B","Construction et entretien de tunnels","42.13B - Construction et entretien de tunnels",2]
["42.21Z","Construction de réseaux pour fluides","42.21Z - Construction de réseaux pour fluides",2]
["42.22Z","Construction de réseaux électriques et de télécommunications","42.22Z - Construction de réseaux électriques et de télécommunications",2]
["42.91Z","Construction d'ouvrages maritimes et fluviaux","42.91Z - Construction d'ouvrages maritimes et fluviaux",2]
["42.99Z","Construction d'autres ouvrages de génie civil n.c.a.","42.99Z - Construction d'autres ouvrages de génie civil n.c.a.",2]
["43.11Z","Travaux de démolition","43.11Z - Travaux de démolition",2]
["43.12A","Travaux de terrassement courants et travaux préparatoires","43.12A - Travaux de terrassement courants et travaux préparatoires",2]
["43.12B","Travaux de terrassement spécialisés ou de grande masse","43.12B - Travaux de terrassement spécialisés ou de grande masse",2]
["43.13Z","Forages et sondages","43.13Z - Forages et sondages",2]
["43.21A","Travaux d'installation électrique dans tous locaux","43.21A - Travaux d'installation électrique dans tous locaux",2]
["43.21B","Travaux d'installation électrique sur la voie publique","43.21B - Travaux d'installation électrique sur la voie publique",2]
["43.22A","Travaux d'installation d'eau et de gaz en tous locaux","43.22A - Travaux d'installation d'eau et de gaz en tous locaux",2]
["43.22B","Travaux d'installation d'équipements thermiques et de climatisation","43.22B - Travaux d'installation d'équipements thermiques et de climatisation",2]
["43.29A","Travaux d'isolation","43.29A - Travaux d'isolation",2]
["43.29B","Autres travaux d'installation n.c.a.","43.29B - Autres travaux d'installation n.c.a.",2]
["43.31Z","Travaux de plâtrerie","43.31Z - Travaux de plâtrerie",2]
["43.32A","Travaux de menuiserie bois et PVC","43.32A - Travaux de menuiserie bois et PVC",2]
["43.32B","Travaux de menuiserie métallique et serrurerie","43.32B - Travaux de menuiserie métallique et serrurerie",2]
["43.32C","Agencement de lieux de vente","43.32C - Agencement de lieux de vente",2]
["43.33Z","Travaux de revêtement des sols et des murs","43.33Z - Travaux de revêtement des sols et des murs",2]
["43.34Z","Travaux de peinture et vitrerie","43.34Z - Travaux de peinture et vitrerie",2]
["43.39Z","Autres travaux de finition","43.39Z - Autres travaux de finition",2]
["43.91A","Travaux de charpente","43.91A - Travaux de charpente",2]
["43.91B","Travaux de couverture par éléments","43.91B - Travaux de couverture par éléments",2]
["43.99A","Travaux d'étanchéification","43.99A - Travaux d'étanchéification",2]
["43.99B","Travaux de montage de structures métalliques","43.99B - Travaux de montage de structures métalliques",2]
["43.99C","Travaux de maçonnerie générale et gros œuvre de bâtiment","43.99C - Travaux de maçonnerie générale et gros œuvre de bâtiment",2]
["43.99D","Autres travaux spécialisés de construction","43.99D - Autres travaux spécialisés de construction",2]
["43.99E","Location avec opérateur de matériel de construction","43.99E - Location avec opérateur de matériel de construction",2]
["45.11Z","Commerce de voitures et de véhicules automobiles légers","45.11Z - Commerce de voitures et de véhicules automobiles légers",2]
["45.19Z","Commerce d'autres véhicules automobiles","45.19Z - Commerce d'autres véhicules automobiles",2]
["45.20A","Entretien et réparation de véhicules automobiles légers","45.20A - Entretien et réparation de véhicules automobiles légers",2]
["45.20B","Entretien et réparation d'autres véhicules automobiles","45.20B - Entretien et réparation d'autres véhicules automobiles",2]
["45.31Z","Commerce de gros d'équipements automobiles","45.31Z - Commerce de gros d'équipements automobiles",2]
["45.32Z","Commerce de détail d'équipements automobiles","45.32Z - Commerce de détail d'équipements automobiles",2]
["45.40Z","Commerce et réparation de motocycles","45.40Z - Commerce et réparation de motocycles",2]
["46.11Z","Intermédiaires du commerce en matières premières agricoles, animaux vivants, matières premières textiles et produits semi-finis","46.11Z - Intermédiaires du commerce en matières premières agricoles, animaux vivants, matières premières textiles et produits semi-finis",2]
["46.12A","Centrales d'achat de carburant","46.12A - Centrales d'achat de carburant",2]
["46.12B","Autres intermédiaires du commerce en combustibles, métaux, minéraux et produits chimiques","46.12B - Autres intermédiaires du commerce en combustibles, métaux, minéraux et produits chimiques",2]
["46.13Z","Intermédiaires du commerce en bois et matériaux de construction","46.13Z - Intermédiaires du commerce en bois et matériaux de construction",2]
["46.14Z","Intermédiaires du commerce en machines, équipements industriels, navires et avions","46.14Z - Intermédiaires du commerce en machines, équipements industriels, navires et avions",2]
["46.15Z","Intermédiaires du commerce en meubles, articles de ménage et quincaillerie","46.15Z - Intermédiaires du commerce en meubles, articles de ménage et quincaillerie",2]
["46.16Z","Intermédiaires du commerce en textiles, habillement, fourrures, chaussures et articles en cuir","46.16Z - Intermédiaires du commerce en textiles, habillement, fourrures, chaussures et articles en cuir",2]
["46.17A","Centrales d'achat alimentaires","46.17A - Centrales d'achat alimentaires",2]
["46.17B","Autres intermédiaires du commerce en denrées, boissons et tabac","46.17B - Autres intermédiaires du commerce en denrées, boissons et tabac",2]
["46.18Z","Intermédiaires spécialisés dans le commerce d'autres produits spécifiques","46.18Z - Intermédiaires spécialisés dans le commerce d'autres produits spécifiques",2]
["46.19A","Centrales d'achat non alimentaires",{"$f":"A387&\" - \"&B387","v":"46.19A - Centrales d'achat non alimentaires"},2]
["46.19B","Autres intermédiaires du commerce en produits divers","46.19B - Autres intermédiaires du commerce en produits divers",2]
["46.21Z","Commerce de gros (commerce interentreprises) de céréales, de tabac non manufacturé, de semences et d'aliments pour le bétail","46.21Z - Commerce de gros (commerce interentreprises) de céréales, de tabac non manufacturé, de semences et d'aliments pour le bétail",2]
["46.22Z","Commerce de gros (commerce interentreprises) de fleurs et plantes","46.22Z - Commerce de gros (commerce interentreprises) de fleurs et plantes",2]
["46.23Z","Commerce de gros (commerce interentreprises) d'animaux vivants","46.23Z - Commerce de gros (commerce interentreprises) d'animaux vivants",2]
["46.24Z","Commerce de gros (commerce interentreprises) de cuirs et peaux","46.24Z - Commerce de gros (commerce interentreprises) de cuirs et peaux",2]
["46.31Z","Commerce de gros (commerce interentreprises) de fruits et légumes","46.31Z - Commerce de gros (commerce interentreprises) de fruits et légumes",2]
["46.32A","Commerce de gros (commerce interentreprises) de viandes de boucherie","46.32A - Commerce de gros (commerce interentreprises) de viandes de boucherie",2]
["46.32B","Commerce de gros (commerce interentreprises) de produits à base de viande","46.32B - Commerce de gros (commerce interentreprises) de produits à base de viande",2]
["46.32C","Commerce de gros (commerce interentreprises) de volailles et gibier","46.32C - Commerce de gros (commerce interentreprises) de volailles et gibier",2]
["46.33Z","Commerce de gros (commerce interentreprises) de produits laitiers, œufs, huiles et matières grasses comestibles","46.33Z - Commerce de gros (commerce interentreprises) de produits laitiers, œufs, huiles et matières grasses comestibles",2]
["46.34Z","Commerce de gros (commerce interentreprises) de boissons","46.34Z - Commerce de gros (commerce interentreprises) de boissons",2]
["46.35Z","Commerce de gros (commerce interentreprises) de produits à base de tabac","46.35Z - Commerce de gros (commerce interentreprises) de produits à base de tabac",2]
["46.36Z","Commerce de gros (commerce interentreprises) de sucre, chocolat et confiserie","46.36Z - Commerce de gros (commerce interentreprises) de sucre, chocolat et confiserie",2]
["46.37Z","Commerce de gros (commerce interentreprises) de café, thé, cacao et épices","46.37Z - Commerce de gros (commerce interentreprises) de café, thé, cacao et épices",2]
["46.38A","Commerce de gros (commerce interentreprises) de poissons, crustacés et mollusques","46.38A - Commerce de gros (commerce interentreprises) de poissons, crustacés et mollusques",2]
["46.38B","Commerce de gros (commerce interentreprises) alimentaire spécialisé divers","46.38B - Commerce de gros (commerce interentreprises) alimentaire spécialisé divers",2]
["46.39A","Commerce de gros (commerce interentreprises) de produits surgelés","46.39A - Commerce de gros (commerce interentreprises) de produits surgelés",2]
["46.39B","Commerce de gros (commerce interentreprises) alimentaire non spécialisé","46.39B - Commerce de gros (commerce interentreprises) alimentaire non spécialisé",2]
["46.41Z","Commerce de gros (commerce interentreprises) de textiles","46.41Z - Commerce de gros (commerce interentreprises) de textiles",2]
["46.42Z","Commerce de gros (commerce interentreprises) d'habillement et de chaussures","46.42Z - Commerce de gros (commerce interentreprises) d'habillement et de chaussures",2]
["46.43Z","Commerce de gros (commerce interentreprises) d'appareils électroménagers","46.43Z - Commerce de gros (commerce interentreprises) d'appareils électroménagers",2]
["46.44Z","Commerce de gros (commerce interentreprises) de vaisselle, verrerie et produits d'entretien","46.44Z - Commerce de gros (commerce interentreprises) de vaisselle, verrerie et produits d'entretien",2]
["46.45Z","Commerce de gros (commerce interentreprises) de parfumerie et de produits de beauté","46.45Z - Commerce de gros (commerce interentreprises) de parfumerie et de produits de beauté",2]
["46.46Z","Commerce de gros (commerce interentreprises) de produits pharmaceutiques","46.46Z - Commerce de gros (commerce interentreprises) de produits pharmaceutiques",2]
["46.47Z","Commerce de gros (commerce interentreprises) de meubles, de tapis et d'appareils d'éclairage","46.47Z - Commerce de gros (commerce interentreprises) de meubles, de tapis et d'appareils d'éclairage",2]
["46.48Z","Commerce de gros (commerce interentreprises) d'articles d'horlogerie et de bijouterie","46.48Z - Commerce de gros (commerce interentreprises) d'articles d'horlogerie et de bijouterie",2]
["46.49Z","Commerce de gros (commerce interentreprises) d'autres biens domestiques","46.49Z - Commerce de gros (commerce interentreprises) d'autres biens domestiques",2]
["46.51Z","Commerce de gros (commerce interentreprises) d'ordinateurs, d'équipements informatiques périphériques et de logiciels","46.51Z - Commerce de gros (commerce interentreprises) d'ordinateurs, d'équipements informatiques périphériques et de logiciels",2]
["46.52Z","Commerce de gros (commerce interentreprises) de composants et d'équipements électroniques et de télécommunication","46.52Z - Commerce de gros (commerce interentreprises) de composants et d'équipements électroniques et de télécommunication",2]
["46.61Z","Commerce de gros (commerce interentreprises) de matériel agricole","46.61Z - Commerce de gros (commerce interentreprises) de matériel agricole",2]
["46.62Z","Commerce de gros (commerce interentreprises) de machines-outils","46.62Z - Commerce de gros (commerce interentreprises) de machines-outils",2]
["46.63Z","Commerce de gros (commerce interentreprises) de machines pour l'extraction, la construction et le génie civil","46.63Z - Commerce de gros (commerce interentreprises) de machines pour l'extraction, la construction et le génie civil",2]
["46.64Z","Commerce de gros (commerce interentreprises) de machines pour l'industrie textile et l'habillement","46.64Z - Commerce de gros (commerce interentreprises) de machines pour l'industrie textile et l'habillement",2]
["46.65Z","Commerce de gros (commerce interentreprises) de mobilier de bureau","46.65Z - Commerce de gros (commerce interentreprises) de mobilier de bureau",2]
["46.66Z","Commerce de gros (commerce interentreprises) d'autres machines et équipements de bureau","46.66Z - Commerce de gros (commerce interentreprises) d'autres machines et équipements de bureau",2]
["46.69A","Commerce de gros (commerce interentreprises) de matériel électrique","46.69A - Commerce de gros (commerce interentreprises) de matériel électrique",2]
["46.69B","Commerce de gros (commerce interentreprises) de fournitures et équipements industriels divers","46.69B - Commerce de gros (commerce interentreprises) de fournitures et équipements industriels divers",2]
["46.69C","Commerce de gros (commerce interentreprises) de fournitures et équipements divers pour le commerce et les services","46.69C - Commerce de gros (commerce interentreprises) de fournitures et équipements divers pour le commerce et les services",2]
["46.71Z","Commerce de gros (commerce interentreprises) de combustibles et de produits annexes","46.71Z - Commerce de gros (commerce interentreprises) de combustibles et de produits annexes",2]
["46.72Z","Commerce de gros (commerce interentreprises) de minerais et métaux","46.72Z - Commerce de gros (commerce interentreprises) de minerais et métaux",2]
["46.73A","Commerce de gros (commerce interentreprises) de bois et de matériaux de construction","46.73A - Commerce de gros (commerce interentreprises) de bois et de matériaux de construction",2]
["46.73B","Commerce de gros (commerce interentreprises) d'appareils sanitaires et de produits de décoration","46.73B - Commerce de gros (commerce interentreprises) d'appareils sanitaires et de produits de décoration",2]
["46.74A","Commerce de gros (commerce interentreprises) de quincaillerie","46.74A - Commerce de gros (commerce interentreprises) de quincaillerie",2]
["46.74B","Commerce de gros (commerce interentreprises) de fournitures pour la plomberie et le chauffage","46.74B - Commerce de gros (commerce interentreprises) de fournitures pour la plomberie et le chauffage",2]
["46.75Z","Commerce de gros (commerce interentreprises) de produits chimiques","46.75Z - Commerce de gros (commerce interentreprises) de produits chimiques",2]
["46.76Z","Commerce de gros (commerce interentreprises) d'autres produits intermédiaires","46.76Z - Commerce de gros (commerce interentreprises) d'autres produits intermédiaires",2]
["46.77Z","Commerce de gros (commerce interentreprises) de déchets et débris","46.77Z - Commerce de gros (commerce interentreprises) de déchets et débris",2]
["46.90Z","Commerce de gros (commerce interentreprises) non spécialisé","46.90Z - Commerce de gros (commerce interentreprises) non spécialisé",2]
["47.11A","Commerce de détail de produits surgelés","47.11A - Commerce de détail de produits surgelés",2]
["47.11B","Commerce d'alimentation générale","47.11B - Commerce d'alimentation générale",2]
["47.11C","Supérettes","47.11C - Supérettes",2]
["47.11D","Supermarchés","47.11D - Supermarchés",2]
["47.11E","Magasins multi-commerces","47.11E - Magasins multi-commerces",2]
["47.11F","Hypermarchés","47.11F - Hypermarchés",2]
["47.19A","Grands magasins","47.19A - Grands magasins",2]
["47.19B","Autres commerces de détail en magasin non spécialisé","47.19B - Autres commerces de détail en magasin non spécialisé",2]
["47.21Z","Commerce de détail de fruits et légumes en magasin spécialisé","47.21Z - Commerce de détail de fruits et légumes en magasin spécialisé",2]
["47.22Z","Commerce de détail de viandes et de produits à base de viande en magasin spécialisé","47.22Z - Commerce de détail de viandes et de produits à base de viande en magasin spécialisé",2]
["47.23Z","Commerce de détail de poissons, crustacés et mollusques en magasin spécialisé","47.23Z - Commerce de détail de poissons, crustacés et mollusques en magasin spécialisé",2]
["47.24Z","Commerce de détail de pain, pâtisserie et confiserie en magasin spécialisé","47.24Z - Commerce de détail de pain, pâtisserie et confiserie en magasin spécialisé",2]
["47.25Z","Commerce de détail de boissons en magasin spécialisé","47.25Z - Commerce de détail de boissons en magasin spécialisé",2]
["47.26Z","Commerce de détail de produits à base de tabac en magasin spécialisé","47.26Z - Commerce de détail de produits à base de tabac en magasin spécialisé",2]
["47.29Z","Autres commerces de détail alimentaires en magasin spécialisé","47.29Z - Autres commerces de détail alimentaires en magasin spécialisé",2]
["47.30Z","Commerce de détail de carburants en magasin spécialisé",{"$f":"A451&\" - \"&B451","v":"47.30Z - Commerce de détail de carburants en magasin spécialisé"},2]
["47.41Z","Commerce de détail d'ordinateurs, d'unités périphériques et de logiciels en magasin spécialisé","47.41Z - Commerce de détail d'ordinateurs, d'unités périphériques et de logiciels en magasin spécialisé",2]
["47.42Z","Commerce de détail de matériels de télécommunication en magasin spécialisé","47.42Z - Commerce de détail de matériels de télécommunication en magasin spécialisé",2]
["47.43Z","Commerce de détail de matériels audio et vidéo en magasin spécialisé","47.43Z - Commerce de détail de matériels audio et vidéo en magasin spécialisé",2]
["47.51Z","Commerce de détail de textiles en magasin spécialisé","47.51Z - Commerce de détail de textiles en magasin spécialisé",2]
["47.52A","Commerce de détail de quincaillerie, peintures et verres en petites surfaces (moins de 400 m²)","47.52A - Commerce de détail de quincaillerie, peintures et verres en petites surfaces (moins de 400 m²)",2]
["47.52B","Commerce de détail de quincaillerie, peintures et verres en grandes surfaces (400 m² et plus)","47.52B - Commerce de détail de quincaillerie, peintures et verres en grandes surfaces (400 m² et plus)",2]
["47.53Z","Commerce de détail de tapis, moquettes et revêtements de murs et de sols en magasin spécialisé","47.53Z - Commerce de détail de tapis, moquettes et revêtements de murs et de sols en magasin spécialisé",2]
["47.54Z","Commerce de détail d'appareils électroménagers en magasin spécialisé","47.54Z - Commerce de détail d'appareils électroménagers en magasin spécialisé",2]
["47.59A","Commerce de détail de meubles","47.59A - Commerce de détail de meubles",2]
["47.59B","Commerce de détail d'autres équipements du foyer","47.59B - Commerce de détail d'autres équipements du foyer",2]
["47.61Z","Commerce de détail de livres en magasin spécialisé","47.61Z - Commerce de détail de livres en magasin spécialisé",2]
["47.62Z","Commerce de détail de journaux et papeterie en magasin spécialisé","47.62Z - Commerce de détail de journaux et papeterie en magasin spécialisé",2]
["47.63Z","Commerce de détail d'enregistrements musicaux et vidéo en magasin spécialisé","47.63Z - Commerce de détail d'enregistrements musicaux et vidéo en magasin spécialisé",2]
["47.64Z","Commerce de détail d'articles de sport en magasin spécialisé","47.64Z - Commerce de détail d'articles de sport en magasin spécialisé",2]
["47.65Z","Commerce de détail de jeux et jouets en magasin spécialisé","47.65Z - Commerce de détail de jeux et jouets en magasin spécialisé",2]
["47.71Z","Commerce de détail d'habillement en magasin spécialisé","47.71Z - Commerce de détail d'habillement en magasin spécialisé",2]
["47.72A","Commerce de détail de la chaussure","47.72A - Commerce de détail de la chaussure",2]
["47.72B","Commerce de détail de maroquinerie et d'articles de voyage","47.72B - Commerce de détail de maroquinerie et d'articles de voyage",2]
["47.73Z","Commerce de détail de produits pharmaceutiques en magasin spécialisé","47.73Z - Commerce de détail de produits pharmaceutiques en magasin spécialisé",2]
["47.74Z","Commerce de détail d'articles médicaux et orthopédiques en magasin spécialisé","47.74Z - Commerce de détail d'articles médicaux et orthopédiques en magasin spécialisé",2]
["47.75Z","Commerce de détail de parfumerie et de produits de beauté en magasin spécialisé","47.75Z - Commerce de détail de parfumerie et de produits de beauté en magasin spécialisé",2]
["47.76Z","Commerce de détail de fleurs, plantes, graines, engrais, animaux de compagnie et aliments pour ces animaux en magasin spécialisé","47.76Z - Commerce de détail de fleurs, plantes, graines, engrais, animaux de compagnie et aliments pour ces animaux en magasin spécialisé",2]
["47.77Z","Commerce de détail d'articles d'horlogerie et de bijouterie en magasin spécialisé","47.77Z - Commerce de détail d'articles d'horlogerie et de bijouterie en magasin spécialisé",2]
["47.78A","Commerces de détail d'optique","47.78A - Commerces de détail d'optique",2]
["47.78B","Commerces de détail de charbons et combustibles","47.78B - Commerces de détail de charbons et combustibles",2]
["47.78C","Autres commerces de détail spécialisés divers","47.78C - Autres commerces de détail spécialisés divers",2]
["47.79Z","Commerce de détail de biens d'occasion en magasin","47.79Z - Commerce de détail de biens d'occasion en magasin",2]
["47.81Z","Commerce de détail alimentaire sur éventaires et marchés","47.81Z - Commerce de détail alimentaire sur éventaires et marchés",2]
["47.82Z","Commerce de détail de textiles, d'habillement et de chaussures sur éventaires et marchés","47.82Z - Commerce de détail de textiles, d'habillement et de chaussures sur éventaires et marchés",2]
["47.89Z","Autres commerces de détail sur éventaires et marchés","47.89Z - Autres commerces de détail sur éventaires et marchés",2]
["47.91A","Vente à distance sur catalogue général","47.91A - Vente à distance sur catalogue général",2]
["47.91B","Vente à distance sur catalogue spécialisé","47.91B - Vente à distance sur catalogue spécialisé",2]
["47.99A","Vente à domicile","47.99A - Vente à domicile",2]
["47.99B","Vente par automates et autres commerces de détail hors magasin, éventaires ou marchés n.c.a.","47.99B - Vente par automates et autres commerces de détail hors magasin, éventaires ou marchés n.c.a.",2]
["49.10Z","Transport ferroviaire interurbain de voyageurs","49.10Z - Transport ferroviaire interurbain de voyageurs",2]
["49.20Z","Transports ferroviaires de fret","49.20Z - Transports ferroviaires de fret",2]
["49.31Z","Transports urbains et suburbains de voyageurs","49.31Z - Transports urbains et suburbains de voyageurs",2]
["49.32Z","Transports de voyageurs par taxis","49.32Z - Transports de voyageurs par taxis",2]
["49.39A","Transports routiers réguliers de voyageurs","49.39A - Transports routiers réguliers de voyageurs",2]
["49.39B","Autres transports routiers de voyageurs","49.39B - Autres transports routiers de voyageurs",2]
["49.39C","Téléphériques et remontées mécaniques","49.39C - Téléphériques et remontées mécaniques",2]
["49.41A","Transports routiers de fret interurbains","49.41A - Transports routiers de fret interurbains",2]
["49.41B","Transports routiers de fret de proximité","49.41B - Transports routiers de fret de proximité",2]
["49.41C","Location de camions avec chauffeur","49.41C - Location de camions avec chauffeur",2]
["49.42Z","Services de déménagement","49.42Z - Services de déménagement",2]
["49.50Z","Transports par conduites","49.50Z - Transports par conduites",2]
["50.10Z","Transports maritimes et côtiers de passagers","50.10Z - Transports maritimes et côtiers de passagers",2]
["50.20Z","Transports maritimes et côtiers de fret","50.20Z - Transports maritimes et côtiers de fret",2]
["50.30Z","Transports fluviaux de passagers","50.30Z - Transports fluviaux de passagers",2]
["50.40Z","Transports fluviaux de fret","50.40Z - Transports fluviaux de fret",2]
["51.10Z","Transports aériens de passagers","51.10Z - Transports aériens de passagers",2]
["51.21Z","Transports aériens de fret","51.21Z - Transports aériens de fret",2]
["51.22Z","Transports spatiaux","51.22Z - Transports spatiaux",2]
["52.10A","Entreposage et stockage frigorifique","52.10A - Entreposage et stockage frigorifique",2]
["52.10B","Entreposage et stockage non frigorifique","52.10B - Entreposage et stockage non frigorifique",2]
["52.21Z","Services auxiliaires des transports terrestres","52.21Z - Services auxiliaires des transports terrestres",2]
["52.22Z","Services auxiliaires des transports par eau","52.22Z - Services auxiliaires des transports par eau",2]
["52.23Z","Services auxiliaires des transports aériens","52.23Z - Services auxiliaires des transports aériens",2]
["52.24A","Manutention portuaire","52.24A - Manutention portuaire",2]
["52.24B","Manutention non portuaire","52.24B - Manutention non portuaire",2]
["52.29A","Messagerie, fret express","52.29A - Messagerie, fret express",2]
["52.29B","Affrètement et organisation des transports","52.29B - Affrètement et organisation des transports",2]
["53.10Z","Activités de poste dans le cadre d'une obligation de service universel","53.10Z - Activités de poste dans le cadre d'une obligation de service universel",2]
["53.20Z","Autres activités de poste et de courrier",{"$f":"A515&\" - \"&B515","v":"53.20Z - Autres activités de poste et de courrier"},2]
["55.10Z","Hôtels et hébergement similaire","55.10Z - Hôtels et hébergement similaire",2]
["55.20Z","Hébergement touristique et autre hébergement de courte durée","55.20Z - Hébergement touristique et autre hébergement de courte durée",2]
["55.30Z","Terrains de camping et parcs pour caravanes ou véhicules de loisirs","55.30Z - Terrains de camping et parcs pour caravanes ou véhicules de loisirs",2]
["55.90Z","Autres hébergements","55.90Z - Autres hébergements",2]
["56.10A","Restauration traditionnelle","56.10A - Restauration traditionnelle",2]
["56.10B","Cafétérias et autres libres-services","56.10B - Cafétérias et autres libres-services",2]
["56.10C","Restauration de type rapide","56.10C - Restauration de type rapide",2]
["56.21Z","Services des traiteurs","56.21Z - Services des traiteurs",2]
["56.29A","Restauration collective sous contrat","56.29A - Restauration collective sous contrat",2]
["56.29B","Autres services de restauration n.c.a.","56.29B - Autres services de restauration n.c.a.",2]
["56.30Z","Débits de boissons","56.30Z - Débits de boissons",2]
["58.11Z","Édition de livres","58.11Z - Édition de livres",2]
["58.12Z","Édition de répertoires et de fichiers d'adresses","58.12Z - Édition de répertoires et de fichiers d'adresses",2]
["58.13Z","Édition de journaux","58.13Z - Édition de journaux",2]
["58.14Z","Édition de revues et périodiques","58.14Z - Édition de revues et périodiques",2]
["58.19Z","Autres activités d'édition","58.19Z - Autres activités d'édition",2]
["58.21Z","Édition de jeux électroniques","58.21Z - Édition de jeux électroniques",2]
["58.29A","Édition de logiciels système et de réseau","58.29A - Édition de logiciels système et de réseau",2]
["58.29B","Édition de logiciels outils de développement et de langages","58.29B - Édition de logiciels outils de développement et de langages",2]
["58.29C","Édition de logiciels applicatifs","58.29C - Édition de logiciels applicatifs",2]
["59.11A","Production de films et de programmes pour la télévision","59.11A - Production de films et de programmes pour la télévision",2]
["59.11B","Production de films institutionnels et publicitaires","59.11B - Production de films institutionnels et publicitaires",2]
["59.11C","Production de films pour le cinéma","59.11C - Production de films pour le cinéma",2]
["59.12Z","Post-production de films cinématographiques, de vidéo et de programmes de télévision","59.12Z - Post-production de films cinématographiques, de vidéo et de programmes de télévision",2]
["59.13A","Distribution de films cinématographiques","59.13A - Distribution de films cinématographiques",2]
["59.13B","Édition et distribution vidéo","59.13B - Édition et distribution vidéo",2]
["59.14Z","Projection de films cinématographiques","59.14Z - Projection de films cinématographiques",2]
["59.20Z","Enregistrement sonore et édition musicale","59.20Z - Enregistrement sonore et édition musicale",2]
["60.10Z","Édition et diffusion de programmes radio","60.10Z - Édition et diffusion de programmes radio",2]
["60.20A","Édition de chaînes généralistes","60.20A - Édition de chaînes généralistes",2]
["60.20B","Édition de chaînes thématiques","60.20B - Édition de chaînes thématiques",2]
["61.10Z","Télécommunications filaires","61.10Z - Télécommunications filaires",2]
["61.20Z","Télécommunications sans fil","61.20Z - Télécommunications sans fil",2]
["61.30Z","Télécommunications par satellite","61.30Z - Télécommunications par satellite",2]
["61.90Z","Autres activités de télécommunication","61.90Z - Autres activités de télécommunication",2]
["62.01Z","Programmation informatique","62.01Z - Programmation informatique",2]
["62.02A","Conseil en systèmes et logiciels informatiques","62.02A - Conseil en systèmes et logiciels informatiques",2]
["62.02B","Tierce maintenance de systèmes et d'applications informatiques","62.02B - Tierce maintenance de systèmes et d'applications informatiques",2]
["62.03Z","Gestion d'installations informatiques","62.03Z - Gestion d'installations informatiques",2]
["62.09Z","Autres activités informatiques","62.09Z - Autres activités informatiques",2]
["63.11Z","Traitement de données, hébergement et activités connexes","63.11Z - Traitement de données, hébergement et activités connexes",2]
["63.12Z","Portails Internet","63.12Z - Portails Internet",2]
["63.91Z","Activités des agences de presse","63.91Z - Activités des agences de presse",2]
["63.99Z","Autres services d'information n.c.a.","63.99Z - Autres services d'information n.c.a.",2]
["64.11Z","Activités de banque centrale","64.11Z - Activités de banque centrale",2]
["64.19Z","Autres intermédiations monétaires","64.19Z - Autres intermédiations monétaires",2]
["64.20Z","Activités des sociétés holding","64.20Z - Activités des sociétés holding",2]
["64.30Z","Fonds de placement et entités financières similaires","64.30Z - Fonds de placement et entités financières similaires",2]
["64.91Z","Crédit-bail","64.91Z - Crédit-bail",2]
["64.92Z","Autre distribution de crédit","64.92Z - Autre distribution de crédit",2]
["64.99Z","Autres activités des services financiers, hors assurance et caisses de retraite, n.c.a.","64.99Z - Autres activités des services financiers, hors assurance et caisses de retraite, n.c.a.",2]
["65.11Z","Assurance vie","65.11Z - Assurance vie",2]
["65.12Z","Autres assurances","65.12Z - Autres assurances",2]
["65.20Z","Réassurance","65.20Z - Réassurance",2]
["65.30Z","Caisses de retraite","65.30Z - Caisses de retraite",2]
["66.11Z","Administration de marchés financiers","66.11Z - Administration de marchés financiers",2]
["66.12Z","Courtage de valeurs mobilières et de marchandises","66.12Z - Courtage de valeurs mobilières et de marchandises",2]
["66.19A","Supports juridiques de gestion de patrimoine mobilier","66.19A - Supports juridiques de gestion de patrimoine mobilier",2]
["66.19B","Autres activités auxiliaires de services financiers, hors assurance et caisses de retraite, n.c.a.","66.19B - Autres activités auxiliaires de services financiers, hors assurance et caisses de retraite, n.c.a.",2]
["66.21Z","Évaluation des risques et dommages","66.21Z - Évaluation des risques et dommages",2]
["66.22Z","Activités des agents et courtiers d'assurances","66.22Z - Activités des agents et courtiers d'assurances",2]
["66.29Z","Autres activités auxiliaires d'assurance et de caisses de retraite","66.29Z - Autres activités auxiliaires d'assurance et de caisses de retraite",2]
["66.30Z","Gestion de fonds","66.30Z - Gestion de fonds",2]
["68.10Z","Activités des marchands de biens immobiliers",{"$f":"A579&\" - \"&B579","v":"68.10Z - Activités des marchands de biens immobiliers"},2]
["68.20A","Location de logements","68.20A - Location de logements",2]
["68.20B","Location de terrains et d'autres biens immobiliers","68.20B - Location de terrains et d'autres biens immobiliers",2]
["68.31Z","Agences immobilières","68.31Z - Agences immobilières",2]
["68.32A","Administration d'immeubles et autres biens immobiliers","68.32A - Administration d'immeubles et autres biens immobiliers",2]
["68.32B","Supports juridiques de gestion de patrimoine immobilier","68.32B - Supports juridiques de gestion de patrimoine immobilier",2]
["69.10Z","Activités juridiques","69.10Z - Activités juridiques",2]
["69.20Z","Activités comptables","69.20Z - Activités comptables",2]
["70.10Z","Activités des sièges sociaux","70.10Z - Activités des sièges sociaux",2]
["70.21Z","Conseil en relations publiques et communication","70.21Z - Conseil en relations publiques et communication",2]
["70.22Z","Conseil pour les affaires et autres conseils de gestion","70.22Z - Conseil pour les affaires et autres conseils de gestion",2]
["71.11Z","Activités d'architecture","71.11Z - Activités d'architecture",2]
["71.12A","Activité des géomètres","71.12A - Activité des géomètres",2]
["71.12B","Ingénierie, études techniques","71.12B - Ingénierie, études techniques",2]
["71.20A","Contrôle technique automobile","71.20A - Contrôle technique automobile",2]
["71.20B","Analyses, essais et inspections techniques","71.20B - Analyses, essais et inspections techniques",2]
["72.11Z","Recherche-développement en biotechnologie","72.11Z - Recherche-développement en biotechnologie",2]
["72.19Z","Recherche-développement en autres sciences physiques et naturelles","72.19Z - Recherche-développement en autres sciences physiques et naturelles",2]
["72.20Z","Recherche-développement en sciences humaines et sociales","72.20Z - Recherche-développement en sciences humaines et sociales",2]
["73.11Z","Activités des agences de publicité","73.11Z - Activités des agences de publicité",2]
["73.12Z","Régie publicitaire de médias","73.12Z - Régie publicitaire de médias",2]
["73.20Z","Études de marché et sondages","73.20Z - Études de marché et sondages",2]
["74.10Z","Activités spécialisées de design","74.10Z - Activités spécialisées de design",2]
["74.20Z","Activités photographiques","74.20Z - Activités photographiques",2]
["74.30Z","Traduction et interprétation","74.30Z - Traduction et interprétation",2]
["74.90A","Activité des économistes de la construction","74.90A - Activité des économistes de la construction",2]
["74.90B","Activités spécialisées, scientifiques et techniques diverses","74.90B - Activités spécialisées, scientifiques et techniques diverses",2]
["75.00Z","Activités vétérinaires","75.00Z - Activités vétérinaires",2]
["77.11A","Location de courte durée de voitures et de véhicules automobiles légers","77.11A - Location de courte durée de voitures et de véhicules automobiles légers",2]
["77.11B","Location de longue durée de voitures et de véhicules automobiles légers","77.11B - Location de longue durée de voitures et de véhicules automobiles légers",2]
["77.12Z","Location et location-bail de camions","77.12Z - Location et location-bail de camions",2]
["77.21Z","Location et location-bail d'articles de loisirs et de sport","77.21Z - Location et location-bail d'articles de loisirs et de sport",2]
["77.22Z","Location de vidéocassettes et disques vidéo","77.22Z - Location de vidéocassettes et disques vidéo",2]
["77.29Z","Location et location-bail d'autres biens personnels et domestiques","77.29Z - Location et location-bail d'autres biens personnels et domestiques",2]
["77.31Z","Location et location-bail de machines et équipements agricoles","77.31Z - Location et location-bail de machines et équipements agricoles",2]
["77.32Z","Location et location-bail de machines et équipements pour la construction","77.32Z - Location et location-bail de machines et équipements pour la construction",2]
["77.33Z","Location et location-bail de machines de bureau et de matériel informatique","77.33Z - Location et location-bail de machines de bureau et de matériel informatique",2]
["77.34Z","Location et location-bail de matériels de transport par eau","77.34Z - Location et location-bail de matériels de transport par eau",2]
["77.35Z","Location et location-bail de matériels de transport aérien","77.35Z - Location et location-bail de matériels de transport aérien",2]
["77.39Z","Location et location-bail d'autres machines, équipements et biens matériels n.c.a.","77.39Z - Location et location-bail d'autres machines, équipements et biens matériels n.c.a.",2]
["77.40Z","Location-bail de propriété intellectuelle et de produits similaires, à l'exception des œuvres soumises à copyright","77.40Z - Location-bail de propriété intellectuelle et de produits similaires, à l'exception des œuvres soumises à copyright",2]
["78.10Z","Activités des agences de placement de main-d'œuvre","78.10Z - Activités des agences de placement de main-d'œuvre",2]
["78.20Z","Activités des agences de travail temporaire","78.20Z - Activités des agences de travail temporaire",2]
["78.30Z","Autre mise à disposition de ressources humaines","78.30Z - Autre mise à disposition de ressources humaines",2]
["79.11Z","Activités des agences de voyage","79.11Z - Activités des agences de voyage",2]
["79.12Z","Activités des voyagistes","79.12Z - Activités des voyagistes",2]
["79.90Z","Autres services de réservation et activités connexes","79.90Z - Autres services de réservation et activités connexes",2]
["80.10Z","Activités de sécurité privée","80.10Z - Activités de sécurité privée",2]
["80.20Z","Activités liées aux systèmes de sécurité","80.20Z - Activités liées aux systèmes de sécurité",2]
["80.30Z","Activités d'enquête","80.30Z - Activités d'enquête",2]
["81.10Z","Activités combinées de soutien lié aux bâtiments","81.10Z - Activités combinées de soutien lié aux bâtiments",2]
["81.21Z","Nettoyage courant des bâtiments","81.21Z - Nettoyage courant des bâtiments",2]
["81.22Z","Autres activités de nettoyage des bâtiments et nettoyage industriel","81.22Z - Autres activités de nettoyage des bâtiments et nettoyage industriel",2]
["81.29A","Désinfection, désinsectisation, dératisation","81.29A - Désinfection, désinsectisation, dératisation",2]
["81.29B","Autres activités de nettoyage n.c.a.","81.29B - Autres activités de nettoyage n.c.a.",2]
["81.30Z","Services d'aménagement paysager","81.30Z - Services d'aménagement paysager",2]
["82.11Z","Services administratifs combinés de bureau","82.11Z - Services administratifs combinés de bureau",2]
["82.19Z","Photocopie, préparation de documents et autres activités spécialisées de soutien de bureau","82.19Z - Photocopie, préparation de documents et autres activités spécialisées de soutien de bureau",2]
["82.20Z","Activités de centres d'appels","82.20Z - Activités de centres d'appels",2]
["82.30Z","Organisation de foires, salons professionnels et congrès","82.30Z - Organisation de foires, salons professionnels et congrès",2]
["82.91Z","Activités des agences de recouvrement de factures et des sociétés d'information financière sur la clientèle","82.91Z - Activités des agences de recouvrement de factures et des sociétés d'information financière sur la clientèle",2]
["82.92Z","Activités de conditionnement","82.92Z - Activités de conditionnement",2]
["82.99Z","Autres activités de soutien aux entreprises n.c.a.","82.99Z - Autres activités de soutien aux entreprises n.c.a.",2]
["84.11Z","Administration publique générale","84.11Z - Administration publique générale",2]
["84.12Z","Administration publique (tutelle) de la santé, de la formation, de la culture et des services sociaux, autre que sécurité sociale",{"$f":"A643&\" - \"&B643","v":"84.12Z - Administration publique (tutelle) de la santé, de la formation, de la culture et des services sociaux, autre que sécurité sociale"},2]
["84.13Z","Administration publique (tutelle) des activités économiques","84.13Z - Administration publique (tutelle) des activités économiques",2]
["84.21Z","Affaires étrangères","84.21Z - Affaires étrangères",2]
["84.22Z","Défense","84.22Z - Défense",2]
["84.23Z","Justice","84.23Z - Justice",2]
["84.24Z","Activités d'ordre public et de sécurité","84.24Z - Activités d'ordre public et de sécurité",2]
["84.25Z","Services du feu et de secours","84.25Z - Services du feu et de secours",2]
["84.30A","Activités générales de sécurité sociale","84.30A - Activités générales de sécurité sociale",2]
["84.30B","Gestion des retraites complémentaires","84.30B - Gestion des retraites complémentaires",2]
["84.30C","Distribution sociale de revenus","84.30C - Distribution sociale de revenus",2]
["85.10Z","Enseignement pré-primaire","85.10Z - Enseignement pré-primaire",2]
["85.20Z","Enseignement primaire","85.20Z - Enseignement primaire",2]
["85.31Z","Enseignement secondaire général","85.31Z - Enseignement secondaire général",2]
["85.32Z","Enseignement secondaire technique ou professionnel","85.32Z - Enseignement secondaire technique ou professionnel",2]
["85.41Z","Enseignement post-secondaire non supérieur","85.41Z - Enseignement post-secondaire non supérieur",2]
["85.42Z","Enseignement supérieur","85.42Z - Enseignement supérieur",2]
["85.51Z","Enseignement de disciplines sportives et d'activités de loisirs","85.51Z - Enseignement de disciplines sportives et d'activités de loisirs",2]
["85.52Z","Enseignement culturel","85.52Z - Enseignement culturel",2]
["85.53Z","Enseignement de la conduite","85.53Z - Enseignement de la conduite",2]
["85.59A","Formation continue d'adultes","85.59A - Formation continue d'adultes",2]
["85.59B","Autres enseignements","85.59B - Autres enseignements",2]
["85.60Z","Activités de soutien à l'enseignement","85.60Z - Activités de soutien à l'enseignement",2]
["86.10Z","Activités hospitalières","86.10Z - Activités hospitalières",2]
["86.21Z","Activité des médecins généralistes","86.21Z - Activité des médecins généralistes",2]
["86.22A","Activités de radiodiagnostic et de radiothérapie","86.22A - Activités de radiodiagnostic et de radiothérapie",2]
["86.22B","Activités chirurgicales","86.22B - Activités chirurgicales",2]
["86.22C","Autres activités des médecins spécialistes","86.22C - Autres activités des médecins spécialistes",2]
["86.23Z","Pratique dentaire","86.23Z - Pratique dentaire",2]
["86.90A","Ambulances","86.90A - Ambulances",2]
["86.90B","Laboratoires d'analyses médicales","86.90B - Laboratoires d'analyses médicales",2]
["86.90C","Centres de collecte et banques d'organes","86.90C - Centres de collecte et banques d'organes",2]
["86.90D","Activités des infirmiers et des sages-femmes","86.90D - Activités des infirmiers et des sages-femmes",2]
["86.90E","Activités des professionnels de la rééducation, de l'appareillage et des pédicures-podologues","86.90E - Activités des professionnels de la rééducation, de l'appareillage et des pédicures-podologues",2]
["86.90F","Activités de santé humaine non classées ailleurs","86.90F - Activités de santé humaine non classées ailleurs",2]
["87.10A","Hébergement médicalisé pour personnes âgées","87.10A - Hébergement médicalisé pour personnes âgées",2]
["87.10B","Hébergement médicalisé pour enfants handicapés","87.10B - Hébergement médicalisé pour enfants handicapés",2]
["87.10C","Hébergement médicalisé pour adultes handicapés et autre hébergement médicalisé","87.10C - Hébergement médicalisé pour adultes handicapés et autre hébergement médicalisé",2]
["87.20A","Hébergement social pour handicapés mentaux et malades mentaux","87.20A - Hébergement social pour handicapés mentaux et malades mentaux",2]
["87.20B","Hébergement social pour toxicomanes","87.20B - Hébergement social pour toxicomanes",2]
["87.30A","Hébergement social pour personnes âgées","87.30A - Hébergement social pour personnes âgées",2]
["87.30B","Hébergement social pour handicapés physiques","87.30B - Hébergement social pour handicapés physiques",2]
["87.90A","Hébergement social pour enfants en difficultés","87.90A - Hébergement social pour enfants en difficultés",2]
["87.90B","Hébergement social pour adultes et familles en difficultés et autre hébergement social","87.90B - Hébergement social pour adultes et familles en difficultés et autre hébergement social",2]
["88.10A","Aide à domicile","88.10A - Aide à domicile",2]
["88.10B","Accueil ou accompagnement sans hébergement d'adultes handicapés ou de personnes âgées","88.10B - Accueil ou accompagnement sans hébergement d'adultes handicapés ou de personnes âgées",2]
["88.10C","Aide par le travail","88.10C - Aide par le travail",2]
["88.91A","Accueil de jeunes enfants","88.91A - Accueil de jeunes enfants",2]
["88.91B","Accueil ou accompagnement sans hébergement d'enfants handicapés","88.91B - Accueil ou accompagnement sans hébergement d'enfants handicapés",2]
["88.99A","Autre accueil ou accompagnement sans hébergement d'enfants et d'adolescents","88.99A - Autre accueil ou accompagnement sans hébergement d'enfants et d'adolescents",2]
["88.99B","Action sociale sans hébergement n.c.a.","88.99B - Action sociale sans hébergement n.c.a.",2]
["90.01Z","Arts du spectacle vivant","90.01Z - Arts du spectacle vivant",2]
["90.02Z","Activités de soutien au spectacle vivant","90.02Z - Activités de soutien au spectacle vivant",2]
["90.03A","Création artistique relevant des arts plastiques","90.03A - Création artistique relevant des arts plastiques",2]
["90.03B","Autre création artistique","90.03B - Autre création artistique",2]
["90.04Z","Gestion de salles de spectacles","90.04Z - Gestion de salles de spectacles",2]
["91.01Z","Gestion des bibliothèques et des archives","91.01Z - Gestion des bibliothèques et des archives",2]
["91.02Z","Gestion des musées","91.02Z - Gestion des musées",2]
["91.03Z","Gestion des sites et monuments historiques et des attractions touristiques similaires","91.03Z - Gestion des sites et monuments historiques et des attractions touristiques similaires",2]
["91.04Z","Gestion des jardins botaniques et zoologiques et des réserves naturelles","91.04Z - Gestion des jardins botaniques et zoologiques et des réserves naturelles",2]
["92.00Z","Organisation de jeux de hasard et d'argent","92.00Z - Organisation de jeux de hasard et d'argent",2]
["93.11Z","Gestion d'installations sportives","93.11Z - Gestion d'installations sportives",2]
["93.12Z","Activités de clubs de sports","93.12Z - Activités de clubs de sports",2]
["93.13Z","Activités des centres de culture physique","93.13Z - Activités des centres de culture physique",2]
["93.19Z","Autres activités liées au sport","93.19Z - Autres activités liées au sport",2]
["93.21Z","Activités des parcs d'attractions et parcs à thèmes",{"$f":"A707&\" - \"&B707","v":"93.21Z - Activités des parcs d'attractions et parcs à thèmes"},2]
["93.29Z","Autres activités récréatives et de loisirs","93.29Z - Autres activités récréatives et de loisirs",2]
["94.11Z","Activités des organisations patronales et consulaires","94.11Z - Activités des organisations patronales et consulaires",2]
["94.12Z","Activités des organisations professionnelles","94.12Z - Activités des organisations professionnelles",2]
["94.20Z","Activités des syndicats de salariés","94.20Z - Activités des syndicats de salariés",2]
["94.91Z","Activités des organisations religieuses","94.91Z - Activités des organisations religieuses",2]
["94.92Z","Activités des organisations politiques","94.92Z - Activités des organisations politiques",2]
["94.99Z","Autres organisations fonctionnant par adhésion volontaire","94.99Z - Autres organisations fonctionnant par adhésion volontaire",2]
["95.11Z","Réparation d'ordinateurs et d'équipements périphériques","95.11Z - Réparation d'ordinateurs et d'équipements périphériques",2]
["95.12Z","Réparation d'équipements de communication","95.12Z - Réparation d'équipements de communication",2]
["95.21Z","Réparation de produits électroniques grand public","95.21Z - Réparation de produits électroniques grand public",2]
["95.22Z","Réparation d'appareils électroménagers et d'équipements pour la maison et le jardin","95.22Z - Réparation d'appareils électroménagers et d'équipements pour la maison et le jardin",2]
["95.23Z","Réparation de chaussures et d'articles en cuir","95.23Z - Réparation de chaussures et d'articles en cuir",2]
["95.24Z","Réparation de meubles et d'équipements du foyer","95.24Z - Réparation de meubles et d'équipements du foyer",2]
["95.25Z","Réparation d'articles d'horlogerie et de bijouterie","95.25Z - Réparation d'articles d'horlogerie et de bijouterie",2]
["95.29Z","Réparation d'autres biens personnels et domestiques","95.29Z - Réparation d'autres biens personnels et domestiques",2]
["96.01A","Blanchisserie-teinturerie de gros","96.01A - Blanchisserie-teinturerie de gros",2]
["96.01B","Blanchisserie-teinturerie de détail","96.01B - Blanchisserie-teinturerie de détail",2]
["96.02A","Coiffure","96.02A - Coiffure",2]
["96.02B","Soins de beauté","96.02B - Soins de beauté",2]
["96.03Z","Services funéraires","96.03Z - Services funéraires",2]
["96.04Z","Entretien corporel","96.04Z - Entretien corporel",2]
["96.09Z","Autres services personnels n.c.a.","96.09Z - Autres services personnels n.c.a.",2]
["97.00Z","Activités des ménages en tant qu'employeurs de personnel domestique","97.00Z - Activités des ménages en tant qu'employeurs de personnel domestique",2]
["98.10Z","Activités indifférenciées des ménages en tant que producteurs de biens pour usage propre","98.10Z - Activités indifférenciées des ménages en tant que producteurs de biens pour usage propre",2]
["98.20Z","Activités indifférenciées des ménages en tant que producteurs de services pour usage propre","98.20Z - Activités indifférenciées des ménages en tant que producteurs de services pour usage propre",2]
["99.00Z","Activités des organisations et organismes extraterritoriaux","99.00Z - Activités des organisations et organismes extraterritoriaux",2]

{"sheet":"Départements","index":5,"n_rows":102,"n_cols":3,"rows_kept":102,"cut":false,"hidden":true,"merged":[]}
["N°","Département","Concaténation"]
[1,"Ain",{"$f":"CONCATENATE(A2,\" -\",B2)","v":"1 -Ain"}]
[2,"Aisne",{"$f":"CONCATENATE(A3,\" -\",B3)","v":"2 -Aisne"}]
[3,"Allier","3 -Allier"]
[4,"Alpes-de-Haute-Provence","4 -Alpes-de-Haute-Provence"]
[5,"Hautes-Alpes","5 -Hautes-Alpes"]
[6,"Alpes-Maritimes","6 -Alpes-Maritimes"]
[7,"Ardèche","7 -Ardèche"]
[8,"Ardennes","8 -Ardennes"]
[9,"Ariège","9 -Ariège"]
[10,"Aube","10 -Aube"]
[11,"Aude","11 -Aude"]
[12,"Aveyron","12 -Aveyron"]
[13,"Bouches-du-Rhône","13 -Bouches-du-Rhône"]
[14,"Calvados","14 -Calvados"]
[15,"Cantal","15 -Cantal"]
[16,"Charente","16 -Charente"]
[17,"Charente-Maritime","17 -Charente-Maritime"]
[18,"Cher","18 -Cher"]
[19,"Corrèze","19 -Corrèze"]
["2A","Corse-du-Sud","2A -Corse-du-Sud"]
["2B","Haute-Corse","2B -Haute-Corse"]
[21,"Côte-d'Or","21 -Côte-d'Or"]
[22,"Côtes d'Armor","22 -Côtes d'Armor"]
[23,"Creuse","23 -Creuse"]
[24,"Dordogne","24 -Dordogne"]
[25,"Doubs","25 -Doubs"]
[26,"Drôme","26 -Drôme"]
[27,"Eure","27 -Eure"]
[28,"Eure-et-Loir","28 -Eure-et-Loir"]
[29,"Finistère","29 -Finistère"]
[30,"Gard","30 -Gard"]
[31,"Haute-Garonne","31 -Haute-Garonne"]
[32,"Gers","32 -Gers"]
[33,"Gironde","33 -Gironde"]
[34,"Hérault","34 -Hérault"]
[35,"Ille-et-Vilaine","35 -Ille-et-Vilaine"]
[36,"Indre","36 -Indre"]
[37,"Indre-et-Loire","37 -Indre-et-Loire"]
[38,"Isère","38 -Isère"]
[39,"Jura","39 -Jura"]
[40,"Landes","40 -Landes"]
[41,"Loir-et-Cher","41 -Loir-et-Cher"]
[42,"Loire","42 -Loire"]
[43,"Haute-Loire","43 -Haute-Loire"]
[44,"Loire-Atlantique","44 -Loire-Atlantique"]
[45,"Loiret","45 -Loiret"]
[46,"Lot","46 -Lot"]
[47,"Lot-et-Garonne","47 -Lot-et-Garonne"]
[48,"Lozère","48 -Lozère"]
[49,"Maine-et-Loire","49 -Maine-et-Loire"]
[50,"Manche","50 -Manche"]
[51,"Marne","51 -Marne"]
[52,"Haute-Marne","52 -Haute-Marne"]
[53,"Mayenne","53 -Mayenne"]
[54,"Meurthe-et-Moselle","54 -Meurthe-et-Moselle"]
[55,"Meuse","55 -Meuse"]
[56,"Morbihan","56 -Morbihan"]
[57,"Moselle","57 -Moselle"]
[58,"Nièvre","58 -Nièvre"]
[59,"Nord","59 -Nord"]
[60,"Oise","60 -Oise"]
[61,"Orne","61 -Orne"]
[62,"Pas-de-Calais","62 -Pas-de-Calais"]
[63,"Puy-de-Dôme","63 -Puy-de-Dôme"]
[64,"Pyrénées-Atlantiques","64 -Pyrénées-Atlantiques"]
[65,"Hautes-Pyrénées",{"$f":"CONCATENATE(A67,\" -\",B67)","v":"65 -Hautes-Pyrénées"}]
[66,"Pyrénées-Orientales","66 -Pyrénées-Orientales"]
[67,"Bas-Rhin","67 -Bas-Rhin"]
[68,"Haut-Rhin","68 -Haut-Rhin"]
[69,"Rhône","69 -Rhône"]
[70,"Haute-Saône","70 -Haute-Saône"]
[71,"Saône-et-Loire","71 -Saône-et-Loire"]
[72,"Sarthe","72 -Sarthe"]
[73,"Savoie","73 -Savoie"]
[74,"Haute-Savoie","74 -Haute-Savoie"]
[75,"Paris","75 -Paris"]
[76,"Seine-Maritime","76 -Seine-Maritime"]
[77,"Seine-et-Marne","77 -Seine-et-Marne"]
[78,"Yvelines","78 -Yvelines"]
[79,"Deux-Sèvres","79 -Deux-Sèvres"]
[80,"Somme","80 -Somme"]
[81,"Tarn","81 -Tarn"]
[82,"Tarn-et-Garonne","82 -Tarn-et-Garonne"]
[83,"Var","83 -Var"]
[84,"Vaucluse","84 -Vaucluse"]
[85,"Vendée","85 -Vendée"]
[86,"Vienne","86 -Vienne"]
[87,"Haute-Vienne","87 -Haute-Vienne"]
[88,"Vosges","88 -Vosges"]
[89,"Yonne","89 -Yonne"]
[90,"Territoire de Belfort","90 -Territoire de Belfort"]
[91,"Essonne","91 -Essonne"]
[92,"Hauts-de-Seine","92 -Hauts-de-Seine"]
[93,"Seine-St-Denis","93 -Seine-St-Denis"]
[94,"Val-de-Marne","94 -Val-de-Marne"]
[95,"Val-D'Oise","95 -Val-D'Oise"]
[971,"Guadeloupe","971 -Guadeloupe"]
[972,"Martinique","972 -Martinique"]
[973,"Guyane","973 -Guyane"]
[974,"La Réunion","974 -La Réunion"]
[976,"Mayotte","976 -Mayotte"]